Cogmind - Beta 16 @@@ ROGUE MODE // 2025.10.27 @ 15:09:42 Player: Savant Result: Defending 0bPrime! Performance ------------- Evolutions (7) 3500 Regions Visited (32) 6400 Robots Destroyed (573) 2865 Value Destroyed (32380) 32380 Prototype IDs (169) 3380 Alien Tech Used (5) 1000 Bonus (54181) 54181 TOTAL SCORE: 103706 Bonus ------- High Alert Combat Kills 22917 Follower Combat Kills 673 Registered with UFD 300 Met Optimus in HQ 500 Met Data Miner 300 Met Warlord at Base 500 MAIN.C Attacked Warlord 500 Destroyed Superfortress 15000 Met Optimus at Protoforge 1000 Completed Drillbomb Mission10000 Win 3000 Friendly Fire -509 Cogmind --------- Core Integrity 333/1300 Matter 300/300 Energy 270/270 System Corruption 10% Temperature Cool (0) Movement Flying (34) Location 0bPrime Parts ------- > --- POWER (2) -------- Micro Antimatter Reactor Concept Zero-point Core > --- PROPULSION (7) --- Xenon Bombardment Thruster Impulse Thruster Array Impulse Thruster Array (fused) Impulse Thruster Array > --- UTILITY (10) ----- Scrap Suit Experimental Optical Array Experimental Targeting Computer Concept Networked Targeting System Concept Networked Targeting System Experimental Core Analyzer Experimental Reaction Control System Concept Core Shell Centrium Light Armor Plating > --- WEAPON (2) ------- Overtuned Railgun Overtuned Linear Accelerator > --- INVENTORY (5) ---- Concept Chromion Battery (800) Experimental Kinecellerator Concept Core Shell Crosscalibrator Overtuned Nova Cannon Peak State ------------ > --- POWER ------------ Concept Zero-point Core Concept Zero-point Core > --- PROPULSION ------- Electron Diverter Impulse Thruster Array Impulse Thruster Array Impulse Thruster Array > --- UTILITY ---------- Experimental Optical Array Experimental Targeting Computer Concept Networked Targeting System Experimental Core Analyzer Experimental Armor Integrity Analyzer Experimental Kinecellerator Experimental Reaction Control System Concept Core Shell Centrium Light Armor Plating Graphene Brace > --- WEAPON ----------- Compact Linear Accelerator Compact Linear Accelerator > --- INVENTORY -------- Experimental Coolant Injector Concept Chromion Battery Concept Networked Targeting System Crosscalibrator Compact Tesla Bomb Launcher [Rating: 204] Favorites ----------- Power Micro Antimatter Reactor Engine Heavy Ion Engine Power Core Concept Zero-point Core Reactor Micro Antimatter Reactor Propulsion Light Treads Treads Light Treads Flight Unit Improved VTOL Module Utility Medium Storage Unit Device Advanced Sensor Array Storage Medium Storage Unit Processor Advanced Signal Interpreter Hackware Advanced Hacking Suite Protection Reflective Plating Artifact Phase Redirector Weapon Improved Assault Rifle Energy Gun Beamcaster Energy Cannon Concept Plasma Driver Ballistic Gun Improved Assault Rifle Ballistic Cannon Improved Light Cannon Launcher Mini Grenade Launcher Special Weapon Plasma Flamer Impact Weapon Thunder Hammer Slashing Weapon Axe Special Melee Weapon Improved Datajack Build | -11 -10 -10 -9 -9 -8 -8 -8 -8 -6 -6 -6 -6 -6 -6 -5 -5 -5 -5 -5 -5 -5 -4 -4 -4 -4 -4 -4 -4 -3 -3 -3 -3 ------- Run | Yrd Mat Min Mat Min Mat Sto Rec Scr Fac Was Fac Low Low Dat Pro Fac Was Fac Upp Upp Zhi Pro Fac Was Fac Upp Upp War Pro Res Qua Frg Slots Evolved 14 | . . . 2 . 2 . . . 4 . . . . . . 2 . . . . . . 2 . . . . . . 2 . . Power 1 | . . . . . . . . . . . . . . . . . . . . . . . 1 . . . . . . . . . Propulsion 5 | . . . 1 . 1 . . . 1 . . . . . . . . . . . . . 1 . . . . . . 1 . . Utility 8 | . . . 1 . 1 . . . 3 . . . . . . 2 . . . . . . . . . . . . . 1 . . Weapon . | . . . . . . . . . . . . . . . . . . . . . . . . . . . . . . . . . Parts Attached 284 | 8 8 6 24 4 12 25 3 15 17 1 9 . . . . 10 . 8 . . 5 . 10 . 4 4 . 14 1 5 3 88 Power 26 | 1 2 1 2 . 1 3 . 2 1 . . . . . . . . . . . 2 . 2 . . . . 2 . . 1 6 Engine 7 | 1 1 . 1 . 1 3 . . . . . . . . . . . . . . . . . . . . . . . . . . Core 12 | . 1 1 1 . . . . 2 1 . . . . . . . . . . . 1 . 2 . . . . . . . . 3 Reactor 7 | . . . . . . . . . . . . . . . . . . . . . 1 . . . . . . 2 . . 1 3 Propulsion 66 | 2 2 . 9 1 6 5 1 6 1 . . . . . . 2 . 1 . . . . 3 . 2 . . 1 . 2 1 21 Treads 28 | 2 2 . 9 1 6 5 1 2 . . . . . . . . . . . . . . . . . . . . . . . . Leg . | . . . . . . . . . . . . . . . . . . . . . . . . . . . . . . . . . Wheel . | . . . . . . . . . . . . . . . . . . . . . . . . . . . . . . . . . Hover . | . . . . . . . . . . . . . . . . . . . . . . . . . . . . . . . . . Flight 38 | . . . . . . . . 4 1 . . . . . . 2 . 1 . . . . 3 . 2 . . 1 . 2 1 21 Utility 140 | 2 2 1 10 1 3 11 . 6 13 1 6 . . . . 5 . 6 . . 3 . 5 . 2 3 . 7 . 2 1 50 Device 48 | 1 . 1 5 . . 2 . 2 4 1 4 . . . . . . 1 . . 1 . 3 . 1 3 . 2 . 1 . 16 Storage 7 | 1 1 . 1 . . . . 1 1 . . . . . . . . . . . . . . . . . . . . . . 2 Processor 15 | . . . . . . 1 . 1 1 . . . . . . . . . . . . . . . . . . 2 . . . 10 Hackware 15 | . . . . . . . . . 3 . 1 . . . . 4 . 2 . . . . 2 . 1 . . 1 . 1 . . Protection 54 | . 1 . 4 1 3 8 . 2 4 . 1 . . . . 1 . 3 . . 2 . . . . . . 2 . . . 22 Artifact 1 | . . . . . . . . . . . . . . . . . . . . . . . . . . . . . . . 1 . Weapon 52 | 3 2 4 3 2 2 6 2 1 2 . 3 . . . . 3 . 1 . . . . . . . 1 . 4 1 1 . 11 Energy Gun 3 | . . 1 . 1 . . . . . . . . . . . . . . . . . . . . . . . 1 . . . . Energy Cannon 6 | . . . . . . . . . . . 2 . . . . . . . . . . . . . . . . 1 1 . . 2 Ballistic Gun 16 | 3 2 1 2 1 . 4 . . . . . . . . . . . . . . . . . . . . . . . . . 3 Ballistic Cannon 8 | . . . 1 . 1 . . . . . . . . . . . . . . . . . . . . . . . . . . 6 Launcher 7 | . . . . . . 2 1 1 . . 1 . . . . 1 . . . . . . . . . . . . . 1 . . Special Weapon 5 | . . 2 . . . . . . 1 . . . . . . 1 . . . . . . . . . . . 1 . . . . Impact Weapon 2 | . . . . . . . . . 1 . . . . . . 1 . . . . . . . . . . . . . . . . Slashing Weapon 3 | . . . . . 1 . . . . . . . . . . . . 1 . . . . . . . . . 1 . . . . Piercing Weapon . | . . . . . . . . . . . . . . . . . . . . . . . . . . . . . . . . . Special Melee Weapon 2 | . . . . . . . 1 . . . . . . . . . . . . . . . . . . 1 . . . . . . Unidentified Prototypes 25 | . . . 1 . . 2 1 . . . . . . . . 2 . . . . 2 . . . . . . 8 . . 2 7 Corrupted Parts 1 | . . . . . . . . . . . . . . . . . . 1 . . . . . . . . . . . . . . System Corruption 12 | . . . . . . . . . . . . . . . . . . 12 . . . . . . . . . . . . . . Parts Lost 59 | . 4 1 3 . 1 6 . . 3 . 2 . . . . . . . . . . . 2 . 2 . . . . . . 35 Power 7 | . 1 1 . . . 1 . . 1 . . . . . . . . . . . . . 1 . . . . . . . . 2 Propulsion 13 | . 2 . . . . 2 . . . . . . . . . . . . . . . . . . 2 . . . . . . 7 Utility 29 | . 1 . 3 . 1 2 . . . . 1 . . . . . . . . . . . . . . . . . . . . 21 Weapon 10 | . . . . . . 1 . . 2 . 1 . . . . . . . . . . . 1 . . . . . . . . 5 Highest Loss Streak 5 | . 3 1 1 . 1 3 . . 2 . 1 . . . . . . . . . . . 2 . 2 . . . . . . 5 To Critical Strikes . | . . . . . . . . . . . . . . . . . . . . . . . . . . . . . . . . . Average Backups 13 | 4 9 14 19 20 19 19 20 17 9 9 9 10 10 10 10 9 10 9 9 9 9 10 9 9 9 9 10 9 10 9 9 8 Power . | . . 1 1 1 1 . 1 . 1 . 1 2 2 2 2 1 1 1 1 1 . 1 . . . . . . . . . . Propulsion 3 | 2 4 3 8 9 7 7 8 4 1 1 1 1 1 1 1 1 2 2 2 1 1 1 . 1 . . . . 1 . . . Utility 5 | . 1 4 5 3 4 5 5 7 5 6 5 6 6 6 6 4 4 3 4 5 6 5 5 6 6 7 8 6 6 6 5 5 Weapon 3 | . 2 5 5 6 5 5 5 3 1 2 1 1 1 1 1 1 2 1 1 1 1 1 1 1 1 . 1 1 2 2 2 1 Tool/Special . | . . . . . . . . . . . . . . . . . . . . . . . . . . . . . . . . . Unused Backups 64 | . 1 3 8 . 3 4 1 18 4 . 2 . . . . 2 . 1 . 1 . . . 1 2 1 . 2 . . 4 6 Power 5 | . . 1 . . . . . 1 1 . . . . . . 1 . . . . . . . 1 . . . . . . . . Propulsion 14 | . 1 1 3 . . 3 . 4 . . . . . . . 1 . . . . . . . . 1 . . . . . . . Utility 28 | . . . 1 . 1 1 . 10 2 . 1 . . . . . . . . 1 . . . . . 1 . 2 . . 3 5 Weapon 13 | . . . 3 . 2 . . 3 1 . 1 . . . . . . 1 . . . . . . 1 . . . . . 1 . Tool/Special 4 | . . 1 1 . . . 1 . . . . . . . . . . . . . . . . . . . . . . . . 1 Average Slot Usage (%) 93 | . 98 99 99 100 95 99 100 94 99 93 94 100 100 100 100 97 94 93 94 94 94 94 90 89 88 93 94 93 94 94 94 82 Engine 3 | . 11 7 8 11 9 9 9 4 . . . . . . . . . . . . . . . . . . . . . . . . Core 3 | . 2 6 2 . . . . 4 6 6 6 6 6 6 6 5 5 5 5 5 5 5 9 10 9 10 10 7 5 4 . 3 Reactor 1 | . . . . . . . . . . . . . . . . . . . . . . . . . . . . 1 5 4 8 4 Treads 15 | . 27 28 33 33 36 35 36 32 . . . . . . . . . . . . . . . . . . . . . . . . Flight 14 | . . . . . . . . 3 33 33 33 33 33 33 33 29 29 29 29 29 29 29 26 26 25 26 26 26 26 27 27 19 Device 11 | . 11 . 10 11 12 12 11 9 6 6 9 12 12 6 12 10 11 12 10 11 8 10 9 10 10 10 10 9 11 15 12 15 Storage 7 | . 14 14 11 11 9 9 9 9 6 6 6 6 6 6 6 5 5 5 5 5 5 5 5 5 5 5 5 5 5 4 4 3 Processor 5 | . . . . . . . . . 6 6 6 6 6 6 6 5 5 5 5 5 5 5 5 5 5 5 5 5 5 4 4 16 Hackware 5 | . . . . . . . . . 12 13 13 13 13 13 13 16 17 17 17 17 17 17 15 15 15 15 15 11 10 12 14 . Protection 11 | . 1 13 11 11 10 14 15 15 12 13 8 6 6 13 6 11 11 9 11 11 11 11 10 10 9 10 10 13 13 8 10 9 Energy Gun 1 | . . 5 . 2 8 6 . . . . . . . . . . . . . . . . . . . . . . . . . . Ballistic Gun 5 | . 27 19 18 8 . 8 12 4 . . . . . . . . . . . . . . . . . . . . . . . . Ballistic Cannon 2 | . . . 2 11 9 . . . . . . . . . . . . . . . . . . . . . . . . . . 3 Impact Weapon 1 | . . . . . . . . . . 6 5 6 6 6 6 5 5 5 5 5 5 5 5 5 5 5 5 5 5 4 4 . Special Melee Weapon 1 | . . . . . . . 2 9 4 . . . . . . . . . . . . . . . . 4 5 . . . . . Peak Build Rating 204 | 7 12 17 23 23 32 39 39 42 56 56 66 66 64 64 66 83 77 91 89 87 91 91 115 110 115 119 119 128 125 147 156 204 Average Rating 79 | 4 9 13 19 20 27 33 36 35 51 54 59 63 63 64 63 74 77 78 82 82 84 84 103 109 107 115 116 120 119 139 147 188 On Entrance 70 | . 7 12 15 20 20 30 35 36 36 53 54 64 64 64 64 64 77 77 91 83 82 91 84 109 110 111 116 116 123 118 147 156 Avg Prop Armor Cover (%) 1 | . . . . . . . 6 1 . . . . . . . . . . . . . . . . . . . . . 1 1 3 Naked Turns . | . . . . . . . . . . . . . . . . . . . . . . . . . . . . . . . . . Heaviest Build 77 | 12 34 34 60 61 73 77 70 66 27 24 27 24 24 24 24 25 25 29 25 25 30 25 36 32 34 35 35 61 40 44 47 62 Greatest Support 92 | 40 40 40 60 60 82 84 82 92 25 25 25 25 25 25 25 26 25 25 25 25 25 25 43 39 47 47 41 48 42 55 59 62 Greatest Overweight (x) 1 | . 1 . . 1 . . 1 . 1 . 1 . . . . . . 1 . . 1 . . . . . . 1 . . . 1 Average Overweight (x) . | . . . . . . . . . . . . . . . . . . . . . . . . . . . . . . . . . Largest Inventory Capacity 20 | 8 15 15 20 20 20 20 20 20 10 10 10 10 10 10 10 10 10 10 10 10 10 10 10 10 10 10 10 10 10 10 10 10 Average Capacity 13 | 7 12 15 19 20 20 20 20 19 10 10 10 10 10 10 10 10 10 10 10 10 10 10 10 10 10 10 10 10 10 10 10 8 Most Carried 20 | 7 15 15 20 20 20 20 20 20 10 10 10 10 10 10 10 10 10 10 10 10 10 10 10 10 10 10 10 10 10 10 10 10 Average Carried 13 | 4 9 14 19 19 19 19 19 17 9 9 9 10 10 10 10 9 10 9 9 9 9 9 9 9 9 9 9 9 10 9 9 8 Final Capacity 20 | 8 15 15 20 20 20 20 20 10 10 10 10 10 10 10 10 10 10 10 10 10 10 10 10 10 10 10 10 10 10 10 10 5 Final Carried 20 | 7 15 15 20 20 20 20 20 10 9 10 10 10 10 10 10 10 10 9 10 10 10 10 9 10 9 10 10 10 10 10 10 5 Scrap Suit Usage (%) 1 | . . . . . . . . . . . . . . . . . . . . . . . . . . . . . . . . 1 Class Distribution -------------------- 23% | Scavenger-Mutant 20% | Mutant 16% | Hacker-Sprinter 15% | Hacker-Scout 10% | Scavenger-Sprinter 9% | Commander-Mutant Dominant Class ---------------- Mutant | -10/Materials Mutant | -10/Mines Scavenger-Mutant | -9/Materials Scavenger-Mutant | -9/Mines Scavenger-Mutant | -8/Materials Mutant | -8/Storage Commander-Mutant | -8/Recycling Commander-Mutant | -8/Scraptown Hacker-Sprinter | -6/Factory Hacker-Sprinter | -6/Waste Hacker-Sprinter | -6/Factory Hacker-Scout | -6/Lower Caves Hacker-Scout | -6/Lower Caves Hacker-Sprinter | -6/Data Miner Hacker-Scout | -5/Proximity Caves Hacker-Sprinter | -5/Factory Hacker-Sprinter | -5/Waste Hacker-Scout | -5/Factory Hacker-Scout | -5/Upper Caves Hacker-Scout | -5/Upper Caves Hacker-Assassin | -5/Zhirov Hacker-Scout | -4/Proximity Caves Hacker-Scout | -4/Factory Hacker-Sprinter | -4/Waste Hacker-Sprinter | -4/Factory Hacker-Scout | -4/Upper Caves Hacker-Scout | -4/Upper Caves Hacker-Sprinter | -4/Warlord Hacker-Scout | -3/Proximity Caves Hacker-Scout | -3/Research Hacker-Scout | -3/Quarantine Scavenger-Sprinter | -3/Protoforge Resources | -11 -10 -10 -9 -9 -8 -8 -8 -8 -6 -6 -6 -6 -6 -6 -5 -5 -5 -5 -5 -5 -5 -4 -4 -4 -4 -4 -4 -4 -3 -3 -3 -3 ----------- Run | Yrd Mat Min Mat Min Mat Sto Rec Scr Fac Was Fac Low Low Dat Pro Fac Was Fac Upp Upp Zhi Pro Fac Was Fac Upp Upp War Pro Res Qua Frg Matter Collected 20525 | 174 471 337 810 199 728 853 318 177 458 58 552 124 66 . 20 567 . 708 237 10 80 107 107 . 355 110 81 269 50 90 232 12177 Remotely . | . . . . . . . . . . . . . . . . . . . . . . . . . . . . . . . . . Salvage Created 29186 | 40 548 208 1239 269 1208 1332 640 . 453 . 379 . . . . 687 . 1137 222 . 90 . 89 . 495 . . . . 38 259 19853 Parts 1109 | 5 42 15 64 11 58 72 25 . 20 . 10 . . . . 40 . 20 1 . . 1 1 . 8 . . . . . . 716 Haulers Intercepted 15 | . 1 . 5 . 1 3 . . . . . . . . . 1 . 2 . . . . . . 2 . . . . . . . Recyclers Shooed 3 | . 1 . . . 1 . . . . . . . . . . . . 1 . . . . . . . . . . . . . . Parts Field Recycled . | . . . . . . . . . . . . . . . . . . . . . . . . . . . . . . . . . Retrieved Matter . | . . . . . . . . . . . . . . . . . . . . . . . . . . . . . . . . . Parts Self-Destructed 2 | . . . . . . . . . . . . . . . . . . . 1 . . 1 . . . . . . . . . . Prevented . | . . . . . . . . . . . . . . . . . . . . . . . . . . . . . . . . . Parts Restored 2 | . . . . . . . . . . . . . . . . . . . . . . . . . . . . . . . . 2 Faulty 2 | . . . . . . . . . . . . . . . . . . . . . . . . . . . . . . . . 2 Kills | -11 -10 -10 -9 -9 -8 -8 -8 -8 -6 -6 -6 -6 -6 -6 -5 -5 -5 -5 -5 -5 -5 -4 -4 -4 -4 -4 -4 -4 -3 -3 -3 -3 ------- Run | Yrd Mat Min Mat Min Mat Sto Rec Scr Fac Was Fac Low Low Dat Pro Fac Was Fac Upp Upp Zhi Pro Fac Was Fac Upp Upp War Pro Res Qua Frg Combat Hostiles Destroyed 460 | . 10 8 23 10 24 22 7 . 6 . 4 . . . . 6 . 13 2 . . 2 1 . . . . . . . . 322 Melee 8 | . . . . . . . 2 . 1 . 2 . . . . 1 . . . . . . 1 . . . . . . . . 1 Guns 89 | . 10 8 21 4 14 16 5 . . . . . . . . . . . . . . . . . . . . . . . . 11 Cannons 276 | . . . 2 6 10 1 . . . . . . . . . . . . . . . . . . . . . . . . . 257 AOE 52 | . . . . . . 5 . . 5 . 2 . . . . 4 . 12 1 . . 2 . . . . . . . . . 21 Classes Destroyed 25 | 1 8 . 1 1 2 . 1 . . . . . . . . 1 . 2 . . . 1 . . . . . . . . . 7 Worker 7 | . . . . . 1 1 . . . . . . . . . 1 . 1 . . . . 1 . 1 . . . . . . 1 Builder 12 | . 1 . 1 . . . . . 1 . . . . . . 8 . 1 . . . . . . . . . . . . . . Tunneler 6 | 2 . . 1 . . . . . 1 . . . . . . . . 2 . . . . . . . . . . . . . . Hauler 15 | . 1 . 5 . 1 3 . . . . . . . . . 1 . 2 . . . . . . 2 . . . . . . . Recycler 26 | . 2 . 1 . 5 2 4 . 2 . 2 . . . . 2 . 3 . . . . . . 2 . . . . . 1 . Carrier 1 | . . . . . . . . . . . . . . . . . . . . . . . . . . . . . . . . 1 Mechanic 14 | . 1 . . . 1 . . . . . . . . . . 1 . 1 . . . . . . . . . . . . 1 9 Operator 4 | . 1 . . . 1 1 . . . . 1 . . . . . . . . . . . . . . . . . . . . . Drone 9 | . . . . . . . . . . . . . . . . . . . . . . 2 . . . . . . . . . 7 Turret 4 | . . . . . . . . . . . . . . . . . . 4 . . . . . . . . . . . . . . Watcher 28 | . 2 . 3 . 2 2 . . 1 . 3 . . . . 2 . 4 . . . . 2 . 1 . . . . 1 3 2 Swarmer 74 | . 3 3 7 . 9 . . . 5 . 4 . . . . 4 . 12 . . . . . . . . . . . . . 27 Cutter 2 | . . . . . . . . . . . . . . . . 2 . . . . . . . . . . . . . . . . Saboteur 9 | . . . . . . . . . . . . . . . . . . . . . . . . . . . . . . . . 9 Grunt 92 | . 7 5 10 2 6 10 2 . . . . . . . . . . . 2 . . . . . . . . . . . . 48 Brawler 23 | . . . . . . . . . . . . . . . . . . . . . . . . . . . . . . . . 23 Duelist 21 | . . . . . 1 2 . . . . . . . . . . . . . . . . . . . . . . . . . 18 Protector 16 | . . . . . . . . . . . . . . . . . . . . . . . . . . . . . . . . 16 Sentry 35 | . . . 6 2 8 10 4 . . . . . . . . . . . . . . . . . . . . . . . . 5 Hunter 25 | . . . . . . . . . . . . . . . . . . 1 . . . . . . . . . . . . . 24 Programmer 43 | . . . . . . . 1 . 1 . . . . . . . . . . . . . 1 . . . . . . . . 40 Hotshot 4 | . . . . . . . . . . . . . . . . . . . . . . . . . . . . . . . . 4 Striker 49 | . . . . . . . . . . . . . . . . . . . . . . . . . . . . . . . . 49 Executioner 49 | . . . . . . . . . . . . . . . . . . . . . . . . . . . . . . . . 49 Scrapoid 3 | . . . . . . . . . . . . . . . . . . . . . . . . . . . . . . . . 3 Assembled 6 | . . . . 6 . . . . . . . . . . . . . . . . . . . . . . . . . . . . Thug 1 | . . . . 1 . . . . . . . . . . . . . . . . . . . . . . . . . . . . Best Kill Streak 17 | 1 7 3 7 2 4 7 3 . 5 . 5 . . . . 8 . 7 1 . . 2 1 . 1 . . . . 1 2 17 Combat Bots Only 17 | . 4 3 7 2 3 6 2 . 4 . 4 . . . . 4 . 4 1 . . 2 1 . . . . . . . . 17 Max Kills in Single Turn 4 | 1 2 2 2 1 1 3 1 . 4 . 2 . . . . 2 . 4 1 . . 1 1 . 1 . . . . 1 1 3 Gunslinging 1 | . . . 1 . . . . . . . . . . . . . . . . . . . . . . . . . . . . . Exploded 4 | . . . . . . 2 . . 4 . 2 . . . . 1 . 4 1 . . 1 . . . . . . . . . 3 Melee 1 | . . . . . . . 1 . 1 . 1 . . . . 1 . . . . . . 1 . . . . . . . . 1 Uniques/NPCs Destroyed 1 | . . . . . . . . . . . . . . . . . . . . . . . . . . . . . . . . 1 Superfortress (-3/Protoforge) Combat | -11 -10 -10 -9 -9 -8 -8 -8 -8 -6 -6 -6 -6 -6 -6 -5 -5 -5 -5 -5 -5 -5 -4 -4 -4 -4 -4 -4 -4 -3 -3 -3 -3 -------- Run | Yrd Mat Min Mat Min Mat Sto Rec Scr Fac Was Fac Low Low Dat Pro Fac Was Fac Upp Upp Zhi Pro Fac Was Fac Upp Upp War Pro Res Qua Frg Hostile Shots Fired 1453 | . 73 32 83 40 128 140 49 . 107 . 55 . . . 3 63 . 15 8 . . . 18 . 59 . . 18 . 26 2 534 Missed 627 | . 9 9 25 11 29 40 15 . 60 . 35 . . . 1 31 . 5 1 . . . 12 . 26 . . 13 . 17 1 287 Hits 826 | . 64 23 58 29 99 100 34 . 47 . 20 . . . 2 32 . 10 7 . . . 6 . 33 . . 5 . 9 1 247 Melee 28 | . . . . 1 7 8 . . . . . . . . . 10 . . . . . . . . . . . . . . . 2 Projectile 798 | . 64 23 58 28 92 92 34 . 47 . 20 . . . 2 22 . 10 7 . . . 6 . 33 . . 5 . 9 1 245 AOE 3 | . . . . . . . . . . . . . . . . . . . . . . . 3 . . . . . . . . . Critical Strikes 47 | . . . 3 1 6 8 1 . . . . . . . . 7 . . . . . . . . 7 . . . . 1 . 13 Actively Blocked 16 | . . . . . . . . . . . . . . . . 3 . . . . . . . . . . . . . . . 13 Part Disruptions 3 | . . . . 2 . . 1 . . . . . . . . . . . . . . . . . . . . . . . . . Damage Taken 16835 | . 788 358 768 407 1340 1728 470 . 617 . 296 . . . 66 459 . 217 137 . . 54 348 . 649 . . 125 . 150 42 7816 Core 2057 | . 127 98 87 63 127 134 18 . 170 . 27 . . . 66 47 . 45 22 . . 18 . . 84 . . 23 . . . 901 Absorbed by Shields 31 | . . . . . . . 13 . . . . . . . . . . . . . . . . . . . . . . . . 18 Redirected to Shielding 1908 | . . . . . . . . . 39 . 10 . . . . 56 . 55 16 . . 11 . . 85 . . 22 . 40 37 1537 Ignored by Resistances 62 | . . . . . . 34 28 . . . . . . . . . . . . . . . . . . . . . . . . . Regen/Repaired (Parts) 1296 | . . . . . . 188 . . . 20 155 . . . . 97 . . 46 10 . 18 111 12 136 150 8 32 43 97 92 81 Core Remaining (%) 61 | 100 . 10 . 62 . . . 49 . . . . . . 69 . . . . . . 86 . . . . . . 90 . . 25 Volleys Fired 1224 | 7 47 20 74 20 97 82 17 . 6 . 17 7 . . 1 11 . 20 6 3 . 2 6 . 4 3 . 6 1 . . 767 Largest 2 | 2 2 2 2 2 2 2 2 . 1 . 2 1 . . 1 1 . 1 1 1 . 1 1 . 1 1 . 1 1 . . 2 Hottest 200 | 40 46 123 100 108 108 108 48 . 30 . 120 90 . . 90 90 . 90 90 90 . 80 90 . 90 90 . 7 100 . . 200 Shots Fired 1908 | 14 94 39 147 38 194 154 34 . 6 . 18 7 . . 1 11 . 20 6 3 . 2 6 . 4 3 . 6 1 . . 1100 Gun 662 | 14 94 34 139 18 97 140 34 . . . . . . . . . . . . . . . . . . . . . . . . 92 Cannon 1163 | . . . 7 20 97 7 . . . . 14 7 . . 1 7 . 7 2 3 . . 6 . 4 3 . . 1 . . 977 Launcher 71 | . . . . . . 7 . . 6 . 4 . . . . 4 . 13 4 . . 2 . . . . . . . . . 31 Special 12 | . . 5 1 . . . . . . . . . . . . . . . . . . . . . . . . 6 . . . . Kinetic 1310 | 14 94 28 146 33 97 82 34 . . . . . . . . . . . . . . . . . . . . . . . . 782 Thermal 481 | . . 11 1 5 97 65 . . . . 14 7 . . 1 7 . 7 2 3 . . 6 . 4 3 . . . . . 248 Explosive 40 | . . . . . . 7 . . 6 . 4 . . . . 4 . 13 4 . . 2 . . . . . . . . . . Electromagnetic 31 | . . . . . . . . . . . . . . . . . . . . . . . . . . . . . . . . 31 Entropic 40 | . . . . . . . . . . . . . . . . . . . . . . . . . . . . . 1 . . 39 Robot Hit Streak 31 | 8 16 9 21 10 23 21 11 . 3 . . . . . . 3 . 5 . . . 7 . . . . . 13 . . . 31 Robot Miss Streak 7 | 1 5 4 3 5 7 3 2 . . . 3 . . . . . . . . . . . . . . . . . . . . 3 Penetration Max 1 | . . . . . . . . . . . . . . . . . . . . . . . . . . . . . . . . 1 Secondary Targets 5 | . 2 1 2 . . . . . . . . . . . . . . . . . . . . . . . . . . . . . Max Gunslinging Chain 1 | . 1 1 1 . . . . . . . . . . . . . . . . . . . . . . . . . . . . . Shots Hit Robots 1451 | 11 68 26 109 20 113 112 49 1 16 . 9 . . . . 26 . 29 5 . 2 2 10 . 11 . . 6 . 1 7 818 Core Hits 738 | 2 36 16 49 14 40 52 10 . 12 . 8 . . . . 15 . 29 4 . . . 1 . 2 . . . . . . 448 Critical Kills 30 | . . . 1 . . . . . . . 1 . . . . 2 . 1 . . . . . . 1 . . . . . . 24 Critical Parts Destroyed 27 | . . . 2 . . 1 . . . . 4 . . . . 4 . 4 3 . 1 . 2 . 1 . . . . . 1 4 Critical Strikes 142 | . . . 5 . 12 9 2 . . . 5 . . . . 6 . 5 3 . 1 . 2 . 2 . . . . . 1 89 Burn 14 | . . . . . 6 8 . . . . . . . . . . . . . . . . . . . . . . . . . . Meltdown 22 | . . . . . . . . . . . . . . . . . . . . . . . . . . . . . . . . 22 Destroy 7 | . . . 3 . . 1 . . . . . . . . . . . . . . . . . . . . . . . . . 3 Blast 68 | . . . 2 . 6 . . . . . . . . . . . . . . . . . . . . . . . . . . 60 Smash 28 | . . . . . . . . . . . 5 . . . . 6 . 5 3 . 1 . 2 . 2 . . . . . 1 3 Sever 2 | . . . . . . . 2 . . . . . . . . . . . . . . . . . . . . . . . . . Sunder 1 | . . . . . . . . . . . . . . . . . . . . . . . . . . . . . . . . 1 Melee Attacks 612 | . . . . . 4 9 23 1 76 2 83 2 4 . 7 105 . 59 10 4 2 6 55 . 52 11 4 1 29 16 19 28 Impact 492 | . . . . . . . . . 5 2 83 2 4 . 7 105 . 59 10 4 2 6 55 . 52 11 3 1 19 15 19 28 Slashing 104 | . . . . . 4 9 13 . 67 . . . . . . . . . . . . . . . . . . . 10 1 . . Piercing 1 | . . . . . . . . . . . . . . . . . . . . . . . . . . . 1 . . . . . Sneak Attacks 67 | . . . . . . 3 14 1 8 . 5 . . . . 12 . 10 . . . . 2 . 6 . . . . 1 2 3 Combat Hostiles 5 | . . . . . . . . . 1 . . . . . . 1 . . . . . . . . 1 . . . . . . 2 Follow-up Attacks . | . . . . . . . . . . . . . . . . . . . . . . . . . . . . . . . . . Damage Inflicted 92197 | 112 904 395 1698 396 2489 2983 1102 . 1297 . 1049 . . . . 2570 . 4317 846 . 144 176 741 . 1131 . . . . 117 561 69169 Guns 8786 | 112 901 357 1549 174 1274 1821 499 . . . . . . . . . . . . . . . . . . . . . . . . 2099 Cannons 61061 | . . . 130 222 1207 119 . . . . 33 . . . . . . . . . . . . . . . . . . . . 59350 Explosions 11531 | . . . . . . 832 . . 678 . 205 . . . . 520 . 1719 489 . . 176 . . . . . . . . . 6912 Melee 10734 | . . . . . . 197 600 . 619 . 811 . . . . 2050 . 2598 357 . 144 . 741 . 1131 . . . . 117 561 808 Ramming 47 | . 3 . 19 . 8 14 3 . . . . . . . . . . . . . . . . . . . . . . . . . Kinetic 45553 | 112 901 254 1679 376 1207 995 499 . . . . . . . . . . . . . . . . . . . . . . . . 39530 Thermal 24347 | . . 141 . 20 1274 945 . . . . 33 . . . . . . 101 . . . . . . . . . . . . . 21833 Explosive 4518 | . . . . . . 832 . . 678 . 205 . . . . 520 . 1618 489 . . 176 . . . . . . . . . . Electromagnetic 4573 | . . . . . . . . . . . . . . . . . . . . . . . . . . . . . . . . 4573 Impact 9318 | . . . . . . . . . . . 811 . . . . 2050 . 2598 357 . 144 . 741 . 1131 . . . . 117 561 808 Slashing 1416 | . . . . . . 197 600 . 619 . . . . . . . . . . . . . . . . . . . . . . . Piercing . | . . . . . . . . . . . . . . . . . . . . . . . . . . . . . . . . . Entropic 2425 | . . . . . . . . . . . . . . . . . . . . . . . . . . . . . . . . 2425 Highest Corruption 16 | . . . . . . . 1 . 4 13 13 . . . . . . 12 2 2 2 2 3 10 11 10 4 4 . . . 16 Average Corruption 4 | . . . . . . . 1 . 1 11 7 . . . . . . 5 2 2 2 2 2 7 10 5 4 4 . . . 4 Corruption Purged 48 | . . . . . . . . . . . 13 . . . . . . 10 . . . . . . 3 6 . . . . . 16 Corruption Blocked . | . . . . . . . . . . . . . . . . . . . . . . . . . . . . . . . . . Effects 226 | . . . . . . . 6 . 17 4 19 . . . . . . 7 8 . 1 6 2 3 28 9 6 . . . . 110 Message Errors 56 | . . . . . . . 1 . 5 . 8 . . . . . . 1 2 . 1 2 . . 6 3 . . . . . 27 Matter Fused 46 | . . . . . . . 2 . 4 1 3 . . . . . . 3 1 . . 1 . 1 2 . 4 . . . . 24 Heat Flow Errors 29 | . . . . . . . 2 . 4 . 2 . . . . . . . 3 . . . 1 . 4 3 1 . . . . 9 Energy Discharges 28 | . . . . . . . . . 2 . 3 . . . . . . 2 1 . . 2 1 1 3 2 . . . . . 11 Parts Rejected 4 | . . . . . . . . . . . . . . . . . . . . . . . . . 1 . . . . . . 3 Parts Fused 1 | . . . . . . . . . . . . . . . . . . . . . . . . . . . . . . . . 1 Data Loss (minor) 32 | . . . . . . . 1 . 1 2 3 . . . . . . 1 . . . 1 . . 5 . 1 . . . . 17 Data Loss (major) 13 | . . . . . . . . . . . . . . . . . . . 1 . . . . . 2 1 . . . . . 9 Alerts 4 | . . . . . . . . . 1 . . . . . . . . . . . . . . . 2 . . . . . . 1 Misdirections 6 | . . . . . . . . . . 1 . . . . . . . . . . . . . 1 3 . . . . . . 1 Weapon Failures 7 | . . . . . . . . . . . . . . . . . . . . . . . . . . . . . . . . 7 Overload Shots . | . . . . . . . . . . . . . . . . . . . . . . . . . . . . . . . . . Overflow Damage 9897 | . . . . . 64 92 141 . 207 . 638 . . . . 680 . 1157 210 . 87 116 336 . 376 . . . . 47 327 5419 Projectiles 5019 | . . . . . 64 . . . . . . . . . . . . . . . . . . . . . . . . . . 4955 Explosions 468 | . . . . . . 4 . . 42 . . . . . . . . 131 11 . . 116 . . . . . . . . . 164 Melee 4410 | . . . . . . 88 141 . 165 . 638 . . . . 680 . 1026 199 . 87 . 336 . 376 . . . . 47 327 300 Knockbacks 132 | . . . 3 . 9 4 . . . . 5 . . . . 3 . 11 2 . . . 3 . 3 . . . . . 2 87 Impact 31 | . . . 1 . . . . . . . 5 . . . . 3 . 10 2 . . . 3 . 3 . . . . . 2 2 Kinetic 95 | . . . 2 . 9 3 . . . . . . . . . . . . . . . . . . . . . . . . . 81 Secondary 6 | . . . . . . 1 . . . . . . . . . . . 1 . . . . . . . . . . . . . 4 Self-Inflicted Damage 277 | . . . . . . 120 . . 54 . 49 . . . . . . . . . . 54 . . . . . . . . . . Shots 7 | . . . . . . 3 . . 2 . 1 . . . . . . . . . . 1 . . . . . . . . . . Rammed 5 | . 2 . 1 . 1 1 . . . . . . . . . . . . . . . . . . . . . . . . . . Targets Rammed 6 | . 2 . 1 . 1 1 1 . . . . . . . . . . . . . . . . . . . . . . . . . Kicked . | . . . . . . . . . . . . . . . . . . . . . . . . . . . . . . . . . Crushed 1 | . . . . . . . 1 . . . . . . . . . . . . . . . . . . . . . . . . . Highest Temperature 315 | . 43 315 81 238 297 168 186 . 272 2 234 168 1 . 42 72 . 72 274 68 . . 248 . 266 221 242 49 32 34 50 309 Average Temperature 62 | . 19 118 25 66 74 39 88 . 70 2 55 61 1 . 18 28 . 26 81 21 . . 49 . 85 78 113 34 24 16 33 131 Received Heat Transfer 3184 | . 399 120 267 197 486 828 134 . 102 . . . . . 12 18 . 36 30 . . . 24 . 291 . . 9 . 30 . 201 Effects 9 | . . 1 . . 1 . . . . . . . . . . . . . . . . . . . 3 . . . . . . 4 Energy Bleed 2 | . . 1 . . 1 . . . . . . . . . . . . . . . . . . . . . . . . . . . Interference 6 | . . . . . . . . . . . . . . . . . . . . . . . . . 3 . . . . . . 3 Short Circuit 1 | . . . . . . . . . . . . . . . . . . . . . . . . . . . . . . . . 1 Siege Activations . | . . . . . . . . . . . . . . . . . . . . . . . . . . . . . . . . . Martial Activations . | . . . . . . . . . . . . . . . . . . . . . . . . . . . . . . . . . Shielding Activations . | . . . . . . . . . . . . . . . . . . . . . . . . . . . . . . . . . Robots Disrupted . | . . . . . . . . . . . . . . . . . . . . . . . . . . . . . . . . . Combat Hostiles . | . . . . . . . . . . . . . . . . . . . . . . . . . . . . . . . . . Robots Corrupted 44 | . . . . . . . . . . . 4 . . . . 5 . 10 3 . 1 . 1 . 2 . . . . 1 4 13 Combat Hostiles 17 | . . . . . . . . . . . . . . . . 1 . 1 3 . 1 . . . . . . . . . . 11 Parts Fried 83 | . . . . . . . . . . . 4 . . . . 9 . 26 . . . . 2 . 4 . . . . 1 6 31 Impact Corruptions 112 | . . . . . . . . . . . 18 . . . . 18 . 30 7 . 3 . 10 . 5 . . . . 2 11 8 Robots Melted 23 | . . . . . . . . . . . . . . . . . . . . . . . . . . . . . . . . 23 Combat Hostiles 21 | . . . . . . . . . . . . . . . . . . . . . . . . . . . . . . . . 21 Parts Melted 69 | . . . . . 2 2 . . . . . . . . . . . . . . . . . . . . . . . . . 65 Heat Transferred 18244 | . . 462 . 37 2701 2257 . . . . 50 . . . . . . 50 . . . . . . . . . . . . . 12687 Parts Sabotaged 4 | . . . . . . . . . . . . . . . . . . . . . . . . . . . . . . . . 4 Parts Stolen . | . . . . . . . . . . . . . . . . . . . . . . . . . . . . . . . . . Parts Stripped . | . . . . . . . . . . . . . . . . . . . . . . . . . . . . . . . . . Power Chain Reactions 22 | . . . . . . . . . . . . . . . . . . . . . . . . . . . . . . . . 22 Alert | -11 -10 -10 -9 -9 -8 -8 -8 -8 -6 -6 -6 -6 -6 -6 -5 -5 -5 -5 -5 -5 -5 -4 -4 -4 -4 -4 -4 -4 -3 -3 -3 -3 ------- Run | Yrd Mat Min Mat Min Mat Sto Rec Scr Fac Was Fac Low Low Dat Pro Fac Was Fac Upp Upp Zhi Pro Fac Was Fac Upp Upp War Pro Res Qua Frg Maximum Alert Level 5 | . . . 1 . 1 1 . . 1 . . . . . . 1 . 2 . . . . 1 . 1 . . . . . . 5 Low Security (%) 60 | 100 100 100 69 100 75 29 100 . 73 100 100 . . . . 75 100 46 . . . . 57 100 94 . . . . 100 100 12 Level 1 16 | . . . 30 . 24 70 . . 26 . . . . . . 24 . 4 . . . . 42 . 5 . . . . . . 5 Level 2 2 | . . . . . . . . . . . . . . . . . . 48 . . . . . . . . . . . . . 2 Level 3 1 | . . . . . . . . . . . . . . . . . . . . . . . . . . . . . . . . 4 Level 4 1 | . . . . . . . . . . . . . . . . . . . . . . . . . . . . . . . . 6 Level 5 18 | . . . . . . . . . . . . . . . . . . . . . . . . . . . . . . . . 68 High Security . | . . . . . . . . . . . . . . . . . . . . . . . . . . . . . . . . . Max Security . | . . . . . . . . . . . . . . . . . . . . . . . . . . . . . . . . . Peak Influence 8511 | 5 100 82 373 142 334 322 125 . 294 36 181 . . . . 268 93 600 . . . . 313 57 213 . . . . 34 39 8511 Initial 142 | . . 12 . 142 . 135 115 . . 36 4 . . . . . 93 44 . . . . 8 57 32 . . . . . 14 3 Average 1056 | . 24 14 153 21 116 229 21 . 125 13 71 . . . . 85 78 310 . . . . 140 52 55 . . . . 9 7 3736 Influence Increases 17709 | 10 333 224 840 92 797 845 228 . 864 37 588 . 23 . . 710 . 1032 70 . 5 40 572 . 547 . . 76 . 101 114 9561 Destroy 0b10 Robot/C 9080 | . 200 180 500 80 480 440 140 . 220 . 100 . 20 . . 120 . 260 40 . . . 140 . 80 . . 40 . . . 6040 Destroy 0b10 Robot/NC 725 | 10 40 . 60 . 55 45 20 . 25 . 30 . . . . 75 . 80 5 . 5 10 25 . 35 . . . . 5 25 175 Destroy Leader 1660 | . 46 40 138 10 126 140 . . 42 . 16 . . . . 26 . 52 10 . . . 36 . 26 . . . . 2 6 944 Allied During Kill 113 | . . 3 7 . . . 1 . . . 2 . 3 . . . . 8 . . . . 27 . 35 . . 6 . . . 21 Trap Triggered on 0b10 30 | . . . . . . . . . . . . . . . . . . . . . . . . . . . . . . . . 30 Successful Hack 673 | . 17 . 57 . 19 23 37 . 36 . 101 . . . . 59 . 87 . . . . 95 . 36 . . . . 36 . 70 Select Force Hacks 90 | . . . 60 . . . 30 . . . . . . . . . . . . . . . . . . . . . . . . . Disable Machine 690 | . 15 . . . 105 60 . . 105 . 30 . . . . 15 . 75 . . . . 45 . 60 . . . . . 75 105 Destroy Structure 1543 | . . 1 3 2 12 62 . . 121 37 99 . . . . 190 . 350 . . . . 174 . 140 . . . . 28 8 316 Partial Spotted 465 | . . . . . . . . . 90 . 45 . . . . 45 . 15 . . . . 30 . 60 . . . . 30 . 150 Lose Combat Pursuer 2640 | . 15 . 15 . . 75 . . 225 . 165 . . . . 180 . 105 15 . . 30 . . 75 . . 30 . . . 1710 Influence Decreases 9198 | 10 301 256 473 459 475 871 524 . 760 134 418 177 23 . . 442 205 515 439 171 45 26 423 116 407 187 . 41 35 75 133 1057 Entered New Map 1489 | . . 20 . 225 . 187 181 . . 68 3 67 . . . . 175 19 215 41 40 . 6 106 15 70 . . 35 . 12 4 Time Decay 6506 | 10 271 226 431 234 465 624 333 . 467 38 375 110 23 . . 432 30 416 214 130 5 26 327 10 252 117 . 41 . 75 121 703 Lost Part 560 | . 30 10 30 . 10 60 . . 30 . 20 . . . . . . . . . . . 20 . 20 . . . . . . 330 Lost Ally 493 | . . . 12 . . . 10 . 113 28 20 . . . . 10 . 80 10 . . . 70 . 120 . . . . . . 20 Purge Threat 150 | . . . . . . . . . 150 . . . . . . . . . . . . . . . . . . . . . . . Squads Dispatched 93 | . 1 . 3 . . 1 . . 17 . 17 . . . . 15 . 9 . . . . 8 . 7 . . . . 2 1 12 Investigation 48 | . . . 3 . . . . . 8 . 9 . . . . 7 . 5 . . . . 5 . 5 . . . . 1 . 5 Extermination 21 | . . . . . . . . . 3 . 5 . . . . 4 . 2 . . . . 2 . 2 . . . . 1 1 1 Reinforcement 20 | . 1 . . . . 1 . . 4 . 3 . . . . 4 . . . . . . 1 . . . . . . . . 6 Assault 2 | . . . . . . . . . . . . . . . . . . 2 . . . . . . . . . . . . . . Garrison 2 | . . . . . . . . . 2 . . . . . . . . . . . . . . . . . . . . . . . Intercept . | . . . . . . . . . . . . . . . . . . . . . . . . . . . . . . . . . Searches Triggered . | . . . . . . . . . . . . . . . . . . . . . . . . . . . . . . . . . Unchained Authorized 5 | . . . . . . . . . . . . . . . . 1 . 1 . . . . 1 . 1 . . . . 1 . . Data Miner Redirects 1 | . . . . . . . . . . . . . . . . 1 . . . . . . . . . . . . . . . . Construction Impeded 2 | . . . . . . . . . . . . . . . . 1 . . . . . . 1 . . . . . . . . . Haulers Reinforced 1 | . . . . . . . . . . . . . . . . 1 . . . . . . . . . . . . . . . . Active Scanning Responses . | . . . . . . . . . . . . . . . . . . . . . . . . . . . . . . . . . Cargo Convoy Interrupts . | . . . . . . . . . . . . . . . . . . . . . . . . . . . . . . . . . Stealth | -11 -10 -10 -9 -9 -8 -8 -8 -8 -6 -6 -6 -6 -6 -6 -5 -5 -5 -5 -5 -5 -5 -4 -4 -4 -4 -4 -4 -4 -3 -3 -3 -3 --------- Run | Yrd Mat Min Mat Min Mat Sto Rec Scr Fac Was Fac Low Low Dat Pro Fac Was Fac Upp Upp Zhi Pro Fac Was Fac Upp Upp War Pro Res Qua Frg Distress Signals 36 | . 1 . 1 . 5 1 . . 4 . 1 . . . . 3 . 2 . . . . 2 . 2 . . . . . . 14 Communications Jammed 2 | . . . . . . . . . . . . . . . . 2 . . . . . . . . . . . . . . . . Distress Signals 2 | . . . . . . . . . . . . . . . . 2 . . . . . . . . . . . . . . . . Times Spotted 1302 | . 17 9 35 10 40 38 7 . 40 6 23 . . . 2 21 3 25 7 . . 2 10 3 32 . . 31 2 10 6 923 Peak Tracking Total 21 | . 4 3 7 2 5 7 2 . 9 6 6 . . . 2 6 3 7 6 . . 2 5 3 8 . . 12 4 9 2 21 Tactical Retreats 120 | . 1 . 1 . . 5 . . 10 . 7 . . . . 7 . 9 1 . . 1 1 . 7 . . 2 1 1 1 65 ECM-based Alert Blocks 23 | . . . . . . . . . 1 . . . . . . . . . . . . . 2 . 10 . . . 4 1 1 4 Traps | -11 -10 -10 -9 -9 -8 -8 -8 -8 -6 -6 -6 -6 -6 -6 -5 -5 -5 -5 -5 -5 -5 -4 -4 -4 -4 -4 -4 -4 -3 -3 -3 -3 ------- Run | Yrd Mat Min Mat Min Mat Sto Rec Scr Fac Was Fac Low Low Dat Pro Fac Was Fac Upp Upp Zhi Pro Fac Was Fac Upp Upp War Pro Res Qua Frg Traps Triggered 23 | . 3 2 1 . . . . . 1 . 2 . . . . 1 . . . . . . 1 . 2 . . . . . . 10 Indirectly 2 | . . . . . . . . . . . . . . . . . . . . . . . . . . . . . . . . 2 Trap Hack Attempts . | . . . . . . . . . . . . . . . . . . . . . . . . . . . . . . . . . Triggered . | . . . . . . . . . . . . . . . . . . . . . . . . . . . . . . . . . Disarmed . | . . . . . . . . . . . . . . . . . . . . . . . . . . . . . . . . . Reprogrammed 7 | . . . . . . . . . . . . . . . . 3 . . . . . . . . . . . . . . . 4 Reused 3 | . . . . . . . . . . . . . . . . . . . . . . . . . . . . . . . . 3 Traps Extracted . | . . . . . . . . . . . . . . . . . . . . . . . . . . . . . . . . . Installed . | . . . . . . . . . . . . . . . . . . . . . . . . . . . . . . . . . Triggered 3 | . . . . . . . . . . . . . . . . . . . . . . . . . . . . . . . . 3 Machines | -11 -10 -10 -9 -9 -8 -8 -8 -8 -6 -6 -6 -6 -6 -6 -5 -5 -5 -5 -5 -5 -5 -4 -4 -4 -4 -4 -4 -4 -3 -3 -3 -3 ---------- Run | Yrd Mat Min Mat Min Mat Sto Rec Scr Fac Was Fac Low Low Dat Pro Fac Was Fac Upp Upp Zhi Pro Fac Was Fac Upp Upp War Pro Res Qua Frg Machines Disabled 51 | . 1 . . . 7 4 . . 7 . 2 . . . . 1 . 5 . . . . 3 . 4 . . 2 . . 5 10 Max in Single Turn 4 | . 1 . . . 1 1 . . 2 . 1 . . . . 1 . 4 . . . . . . . . . . . . 1 3 Garrison Access 10 | . . . . . . 1 . . 2 . 2 . . . . 1 . . . . . . 1 . . . . . . 1 1 1 Machines Repaired . | . . . . . . . . . . . . . . . . . . . . . . . . . . . . . . . . . Machines Dismantled . | . . . . . . . . . . . . . . . . . . . . . . . . . . . . . . . . . Machines Sabotaged . | . . . . . . . . . . . . . . . . . . . . . . . . . . . . . . . . . Overloaded Fab Kills . | . . . . . . . . . . . . . . . . . . . . . . . . . . . . . . . . . Hacking | -11 -10 -10 -9 -9 -8 -8 -8 -8 -6 -6 -6 -6 -6 -6 -5 -5 -5 -5 -5 -5 -5 -4 -4 -4 -4 -4 -4 -4 -3 -3 -3 -3 --------- Run | Yrd Mat Min Mat Min Mat Sto Rec Scr Fac Was Fac Low Low Dat Pro Fac Was Fac Upp Upp Zhi Pro Fac Was Fac Upp Upp War Pro Res Qua Frg Machines Accessed 224 | . 6 1 13 . 10 13 7 2 28 . 31 . 2 3 . 20 . 17 1 . 5 1 19 . 13 2 1 3 . 5 6 15 Terminals 110 | . 6 . 10 . 9 11 6 . 8 . 12 . . . . 8 . 9 . . . 1 10 . 7 1 1 . . 2 2 7 Fabricators 23 | . . . . . . . . . 3 . 4 . . . . 3 . 4 . . . . 3 . 2 . . . . . . 4 Repair Stations 14 | . . . . . . 1 . . 3 . 3 . . . . 2 . 1 . . . . 1 . 1 . . . . 1 1 . Recycling Units 35 | . . . 2 . . . 1 . 8 . 8 . . . . 4 . 2 . . . . 3 . 3 . . . . 1 . 3 Scanalyzers 13 | . . . 1 . 1 . . . 4 . 1 . . . . 2 . 1 . . . . 1 . . . . . . . 2 . Garrison Access 11 | . . . . . . 1 . . 2 . 3 . . . . 1 . . . . . . 1 . . . . . . 1 1 1 Total Hacks 701 | . 18 1 43 . 28 30 20 21 64 . 65 . 7 27 . 70 . 70 1 . 18 2 67 . 57 9 1 4 . 15 21 42 Successful 474 | . 7 1 26 . 19 17 12 21 37 . 43 . 7 27 . 53 . 40 1 . 18 2 51 . 34 9 1 4 . 10 16 18 Failed 225 | . 11 . 17 . 8 13 8 . 26 . 22 . . . . 17 . 30 . . . . 16 . 23 . . . . 5 5 24 Catastrophic 22 | . . . 1 . 1 . 1 . 3 . 3 . . . . 3 . 2 . . . . 1 . 3 . . . . 1 1 2 Database Lockouts 2 | . . . . . 1 . . . 1 . . . . . . . . . . . . . . . . . . . . . . . Manual 310 | . 18 . 26 . 14 14 16 . 33 . 34 . . . . 23 . 29 . . . . 30 . 38 . . 1 . 9 7 18 Terminals 372 | . 18 . 36 . 23 26 19 . 19 . 31 . . . . 29 . 45 . . . 2 39 . 38 8 1 . . 9 9 20 Fabricators 71 | . . . . . . . . . 6 . 9 . . . . 10 . 15 . . . . 11 . 7 . . . . . . 13 Repair Stations 42 | . . . . . . 2 . . 6 . 8 . . . . 8 . 1 . . . . 6 . 5 . . . . 2 4 . Recycling Units 64 | . . . 3 . . . 1 . 17 . 11 . . . . 7 . 3 . . . . 6 . 7 . . . . 2 . 7 Scanalyzers 52 | . . . 4 . 5 . . . 12 . 1 . . . . 13 . 6 . . . . 4 . . . . . . . 7 . Garrison Access 20 | . . . . . . 2 . . 4 . 5 . . . . 3 . . . . . . 1 . . . . . . 2 1 2 Terminal Hacks 186 | . 1 1 8 . 6 7 4 21 6 . 10 . 7 27 . 11 . 13 1 . 18 2 13 . 9 9 1 4 . 1 2 4 Record 51 | . . . . . . . . 20 . . . . 6 6 . . . . . . 6 2 . . . 8 1 2 . . . . Part Schematic 25 | . . . 1 . . . 1 . . . 1 . . 11 . 1 . 2 . . 4 . 4 . . . . . . . . . Robot Schematic 7 | . . . . . . . . . . . . . . 7 . . . . . . . . . . . . . . . . . . Robot Analysis 8 | . . . 1 . . 1 1 . . . . . . . . 1 . . . . 4 . . . . . . . . . . . Prototype ID Bank 17 | . . . 1 . 1 1 1 . . . . . . 3 . 1 . 2 . . 4 . 1 . 2 . . . . . . . Open Door 10 | . . 1 . . . 4 . . . . . . 1 . . . . . 1 . . . . . . 1 . 2 . . . . Branch Access Points 3 | . . . 1 . . . . . . . . . . . . . . 1 . . . . 1 . . . . . . . . . Machine Index 2 | . . . . . . . . . . . . . . . . . . 1 . . . . 1 . . . . . . . . . Terminal Index 4 | . . . 1 . 1 . . . . . 1 . . . . . . . . . . . . . 1 . . . . . . . Recycling Unit Index 1 | . . . . . . . . . . . . . . . . 1 . . . . . . . . . . . . . . . . Scanalyzer Index 3 | . . . . . . . . . . . 1 . . . . . . . . . . . . . 1 . . . . . 1 . Alert Level 1 | . . . . . . . . . . . . . . . . . . . . . . . . . 1 . . . . . . . Unreport Threat 1 | . . . . . . . . . 1 . . . . . . . . . . . . . . . . . . . . . . . Locate Traps 9 | . . . . . 3 . . . 1 . 1 . . . . . . . . . . . 2 . 1 . . . . . . 1 Reprogram Traps 2 | . . . . . . . . . . . . . . . . 1 . . . . . . . . . . . . . . . 1 Recall Investigation 3 | . . . . . . . . . . . 1 . . . . . . 1 . . . . 1 . . . . . . . . . Recall Extermination 6 | . . . . . . . . . 1 . 1 . . . . 2 . 1 . . . . . . . . . . . . 1 . Recall Reinforcements 2 | . . . . . . . . . 1 . 1 . . . . . . . . . . . . . . . . . . . . . Recall Assault 1 | . . . . . . . . . . . . . . . . . . 1 . . . . . . . . . . . . . . Hauler Manifests 8 | . . . 1 . 1 1 . . . . 1 . . . . 1 . . . . . . 1 . 1 . . . . 1 . . Registered Components 3 | . . . . . . . . . . . 1 . . . . . . 1 . . . . 1 . . . . . . . . . Registered Prototypes 2 | . . . . . . . . . . . . . . . . . . 1 . . . . 1 . . . . . . . . . Zone Layout 15 | . 1 . 2 . . . 1 . 2 . 1 . . . . 3 . 2 . . . . . . 2 . . . . . . 1 Proto ID Catalog 2 | . . . . . . . . 1 . . . . . . . . . . . . . . . . . . . . . . . 1 Fabricator Hacks 31 | . . . . . . . . . 2 . 3 . . . . 5 . 7 . . . . 7 . 3 . . . . . . 4 Network Status 4 | . . . . . . . . . 1 . 1 . . . . 1 . . . . . . . . 1 . . . . . . . Load Schematic 15 | . . . . . . . . . . . 1 . . . . 3 . 3 . . . . 4 . 1 . . . . . . 3 Build 12 | . . . . . . . . . 1 . 1 . . . . 1 . 4 . . . . 3 . 1 . . . . . . 1 Repair Station Hacks 29 | . . . . . . 2 . . 1 . 8 . . . . 4 . . . . . . 4 . 4 . . . . 2 4 . Scan Component 14 | . . . . . . 1 . . 1 . 3 . . . . 2 . . . . . . 2 . 2 . . . . 1 2 . Repair 13 | . . . . . . 1 . . . . 3 . . . . 2 . . . . . . 2 . 2 . . . . 1 2 . Refit 2 | . . . . . . . . . . . 2 . . . . . . . . . . . . . . . . . . . . . Recycling Unit Hacks 13 | . . . 1 . . . . . 1 . 1 . . . . 3 . 1 . . . . 3 . 2 . . . . 1 . . Report Inventory 11 | . . . 1 . . . . . 1 . 1 . . . . 2 . 1 . . . . 3 . 1 . . . . 1 . . Retrieve Components 2 | . . . . . . . . . . . . . . . . 1 . . . . . . . . 1 . . . . . . . Scanalyzer 49 | . . . 4 . 4 . . . 11 . 1 . . . . 13 . 6 . . . . 4 . . . . . . . 6 . Insert Component 21 | . . . 2 . 2 . . . 5 . . . . . . 5 . 2 . . . . 2 . . . . . . . 3 . Analyze 18 | . . . 1 . 1 . . . 5 . . . . . . 6 . 3 . . . . 1 . . . . . . . 1 . Retrieve Study 10 | . . . 1 . 1 . . . 1 . 1 . . . . 2 . 1 . . . . 1 . . . . . . . 2 . Garrison Access Hacks 10 | . . . . . . 1 . . 2 . 2 . . . . 1 . . . . . . 1 . . . . . . 1 1 1 Seal Access 10 | . . . . . . 1 . . 2 . 2 . . . . 1 . . . . . . 1 . . . . . . 1 1 1 Unauthorized Hacks 155 | . 6 . 13 . 9 7 8 . 14 . 18 . . . . 16 . 13 . . . . 19 . 16 . . . . 4 3 9 Terminals 104 | . 6 . 11 . 9 7 7 . 4 . 8 . . . . 8 . 7 . . . . 13 . 11 . . . . 3 3 7 Track 13 | . . . . . . . . . 1 . 1 . . . . 2 . 1 . . . . 2 . 1 . . . . 1 . 4 Assimilate 19 | . . . 4 . 2 . . . 1 . . . . . . 2 . 4 . . . . 2 . 3 . . . . . 1 . Botnet 20 | . 3 . 1 . 1 1 2 . 1 . 1 . . . . 2 . 1 . . . . 2 . 1 . . . . 1 1 2 Operators 13 | . 1 . 1 . 1 1 . . 1 . 1 . . . . 2 . 1 . . . . 1 . . . . . . 1 1 1 Skim 39 | . 2 . 5 . 5 5 5 . . . 5 . . . . . . . . . . . 6 . 6 . . . . . . . Fabricators 19 | . . . . . . . . . 4 . 3 . . . . 3 . 4 . . . . 3 . 2 . . . . . . . Prioritize 2 | . . . . . . . . . . . . . . . . . . 2 . . . . . . . . . . . . . . Liberate 9 | . . . . . . . . . 3 . 2 . . . . 1 . 1 . . . . 1 . 1 . . . . . . . Haulers 4 | . . . . . . . . . 1 . 1 . . . . 1 . . . . . . . . 1 . . . . . . . Recompile 4 | . . . . . . . . . . . . . . . . 1 . 1 . . . . 2 . . . . . . . . . Repair Stations 1 | . . . . . . . . . . . . . . . . 1 . . . . . . . . . . . . . . . . Patch 1 | . . . . . . . . . . . . . . . . 1 . . . . . . . . . . . . . . . . Recycling Units 31 | . . . 2 . . . 1 . 6 . 7 . . . . 4 . 2 . . . . 3 . 3 . . . . 1 . 2 Tunnel 3 | . . . 2 . . . 1 . . . . . . . . . . . . . . . . . . . . . . . . . Fedlink 27 | . . . . . . . . . 6 . 7 . . . . 4 . 2 . . . . 3 . 2 . . . . 1 . 2 Scrapoids 1 | . . . . . . . . . . . . . . . . . . . . . . . . . 1 . . . . . . . Scanalyzers . | . . . . . . . . . . . . . . . . . . . . . . . . . . . . . . . . . Garrison Access . | . . . . . . . . . . . . . . . . . . . . . . . . . . . . . . . . . Data Cores Recovered 2 | . . . . . 1 . . . . . 1 . . . . . . . . . . . . . . . . . . . . . Used . | . . . . . . . . . . . . . . . . . . . . . . . . . . . . . . . . . Hacking Detections 150 | . 6 . 11 . 8 10 5 . 20 . 21 . . . . 14 . 14 . . . . 12 . 11 . . . . 4 4 10 Full Trace Events 11 | . . . . . . . . . 2 . 2 . . . . 1 . 2 . . . . . . 2 . . . . . . 2 Feedback Events 1 | . . . . . . . . . 1 . . . . . . . . . . . . . . . . . . . . . . . Corruption 1 | . . . . . . . . . 1 . . . . . . . . . . . . . . . . . . . . . . . Feedback Blocked . | . . . . . . . . . . . . . . . . . . . . . . . . . . . . . . . . . Robot Schematics Acquired 8 | . . . . . . . . . . . . . . 7 . . . . . . . . . . . . . . . . . 1 Robots Built 11 | . . . . . . . . . 3 . . . . . . . . 3 . . . . 2 . . . . . . . . 3 Authchips . | . . . . . . . . . . . . . . . . . . . . . . . . . . . . . . . . . Time 306 | . . . . . . . . . 76 . . . . . . . . 84 . . . . 84 . . . . . . . . 62 Total Robot Build Rating 66 | . . . . . . . . . 15 . . . . . . . . 18 . . . . 12 . . . . . . . . 21 Part Schematics Acquired 46 | . . . 2 . 1 . 1 . 5 . 1 . . 11 . 6 . 4 . . 4 . 5 . . . . . . . 1 5 Parts Built 9 | . . . . . . . . . . . 1 . . . . 1 . 3 . . . . 3 . 1 . . . . . . . Authchips 4 | . . . . . . . . . . . . . . . . 1 . 1 . . . . 2 . . . . . . . . . Time 539 | . . . . . . . . . . . 31 . . . . 84 . 167 . . . . 201 . 56 . . . . . . . Total Part Build Rating 50 | . . . . . . . . . . . 2 . . . . 6 . 16 . . . . 20 . 6 . . . . . . . Part Studies Acquired 10 | . . . 1 . 1 . . . 1 . 1 . . . . 2 . 1 . . . . 1 . . . . . . . 2 . Parts Repaired 13 | . . . . . . 1 . . . . 3 . . . . 2 . . . . . . 2 . 2 . . . . 1 2 . Time 564 | . . . . . . 38 . . . . 126 . . . . 80 . . . . . . 55 . 56 . . . . 40 169 . Parts Recycled . | . . . . . . . . . . . . . . . . . . . . . . . . . . . . . . . . . Recycled Matter . | . . . . . . . . . . . . . . . . . . . . . . . . . . . . . . . . . Retrieved Matter . | . . . . . . . . . . . . . . . . . . . . . . . . . . . . . . . . . Retrieved Components 12 | . . . . . . . . . . . . . . . . 9 . . . . . . . . 3 . . . . . . . Parts Scanalyzed 16 | . . . 1 . 1 . . . 5 . . . . . . 5 . 2 . . . . 1 . . . . . . . 1 . Part Schematics Acquired 16 | . . . 1 . 1 . . . 5 . . . . . . 5 . 2 . . . . 1 . . . . . . . 1 . Parts Damaged 1 | . . . . . . . . . 1 . . . . . . . . . . . . . . . . . . . . . . . Bothacking | -11 -10 -10 -9 -9 -8 -8 -8 -8 -6 -6 -6 -6 -6 -6 -5 -5 -5 -5 -5 -5 -5 -4 -4 -4 -4 -4 -4 -4 -3 -3 -3 -3 ------------ Run | Yrd Mat Min Mat Min Mat Sto Rec Scr Fac Was Fac Low Low Dat Pro Fac Was Fac Upp Upp Zhi Pro Fac Was Fac Upp Upp War Pro Res Qua Frg Used RIF Installer . | . . . . . . . . . . . . . . . . . . . . . . . . . . . . . . . . . Robots Hacked 4 | . . . . . . . . 1 3 . . . . . . . . . . . . . . . . . . . . . . . Non-combat 3 | . . . . . . . . . 3 . . . . . . . . . . . . . . . . . . . . . . . Combat 1 | . . . . . . . . 1 . . . . . . . . . . . . . . . . . . . . . . . . Robot Hacks Applied 4 | . . . . . . . . 1 3 . . . . . . . . . . . . . . . . . . . . . . . parse_system 1 | . . . . . . . . 1 . . . . . . . . . . . . . . . . . . . . . . . . find_chute 1 | . . . . . . . . . 1 . . . . . . . . . . . . . . . . . . . . . . . find_recycling 2 | . . . . . . . . . 2 . . . . . . . . . . . . . . . . . . . . . . . Relay Couplers Released . | . . . . . . . . . . . . . . . . . . . . . . . . . . . . . . . . . Fabnet Peak Effective % . | . . . . . . . . . . . . . . . . . . . . . . . . . . . . . . . . . Robots Rewired 13 | . . . . . . . 8 . . . . . . . . . . . . . . . . . . . . 5 . . . . Allies Hacked . | . . . . . . . . . . . . . . . . . . . . . . . . . . . . . . . . . Hacks Repelled 2 | . . . . . . . . . . . . . . . . . . . . . . . . . . . . 2 . . . . Allies | -11 -10 -10 -9 -9 -8 -8 -8 -8 -6 -6 -6 -6 -6 -6 -5 -5 -5 -5 -5 -5 -5 -4 -4 -4 -4 -4 -4 -4 -3 -3 -3 -3 -------- Run | Yrd Mat Min Mat Min Mat Sto Rec Scr Fac Was Fac Low Low Dat Pro Fac Was Fac Upp Upp Zhi Pro Fac Was Fac Upp Upp War Pro Res Qua Frg Total Allies 75 | . . 3 1 2 1 . 8 1 7 20 2 . 2 . . 1 . 6 . . . . 5 . 7 . . 5 . . 1 3 Largest Group 19 | . . 3 1 3 1 1 8 9 7 19 2 . 2 . . 1 . 3 1 . . . 5 . 5 . . 5 . . 1 3 Highest-Rated Group 702 | . . 40 16 66 10 10 134 231 125 702 64 . 56 . . 10 . 90 26 . . . 232 . 235 . . 266 . . 10 144 Highest-Rated Ally 96 | . . 16 16 31 10 10 27 96 29 50 32 . 31 . . 10 . 30 26 . . . 54 . 47 . . 56 . . 10 48 Total Orders 89 | . . 4 2 1 7 8 3 18 4 . . . . . . . . 15 2 . . . 4 . 1 . . 13 . . 7 . STAY 54 | . . 2 1 1 4 4 2 10 . . . . . . . . . 9 1 . . . 3 . 1 . . 10 . . 6 . FOLLOW 28 | . . 2 1 . 3 4 1 5 . . . . . . . . . 6 1 . . . 1 . . . . 3 . . 1 . TUNNEL 3 | . . . . . . . . . 3 . . . . . . . . . . . . . . . . . . . . . . . DROP 1 | . . . . . . . . . 1 . . . . . . . . . . . . . . . . . . . . . . . PICKUP 1 | . . . . . . . . 1 . . . . . . . . . . . . . . . . . . . . . . . . COLLECT 2 | . . . . . . . . 2 . . . . . . . . . . . . . . . . . . . . . . . . Ally Attacks 304 | . . 8 9 5 . . . . 64 90 4 . 4 . . . . 6 . . . . 14 . 44 . . 39 . . . 17 Total Damage 9066 | . . 59 100 64 . . . . 873 3815 78 . 83 . . . . 178 . . . . 1104 . 1055 . . 1344 . . . 313 Kills 41 | . . 1 3 1 . . . . 6 11 1 . 1 . . . . . . . . . 8 . 5 . . 2 . . . 2 Allies Corrupted 2 | . . . . . . . . . . . . . . . . . . 1 . . . . . . 1 . . . . . . . Allies Melted 6 | . . . . . . . . . 1 . . . . . . . . . . . . . . . . . . 2 . . . 3 Intel | -11 -10 -10 -9 -9 -8 -8 -8 -8 -6 -6 -6 -6 -6 -6 -5 -5 -5 -5 -5 -5 -5 -4 -4 -4 -4 -4 -4 -4 -3 -3 -3 -3 ------- Run | Yrd Mat Min Mat Min Mat Sto Rec Scr Fac Was Fac Low Low Dat Pro Fac Was Fac Upp Upp Zhi Pro Fac Was Fac Upp Upp War Pro Res Qua Frg Active Infowar (turns) 25985 | 17 954 72 2741 1588 1124 790 332 245 1516 110 1135 269 244 . 295 1547 77 991 449 262 94 429 739 35 670 451 207 553 447 212 478 6912 Optics 6455 | . . . . . . . . . . . . . . . . . . . . . . . . . . . . . . . . 6455 Sensors 11562 | . . . . . . . . 160 1499 102 1119 267 242 . 290 1474 77 953 449 262 93 424 721 35 662 448 207 519 447 202 452 458 Terrain 28 | . . . 28 . . . . . . . . . . . . . . . . . . . . . . . . . . . . . Structural 5689 | . . 72 41 20 731 470 314 2 56 . 181 97 239 . 136 297 . 212 63 88 2 165 467 . 283 318 206 155 445 186 362 81 Seismic 7298 | 17 954 . 2698 1568 903 787 288 83 . . . . . . . . . . . . . . . . . . . . . . . . Jamming 1354 | . . . . . . . . . . 8 2 2 2 . 5 333 . 160 16 . 1 5 105 . 182 . . . . 53 93 387 ECM 589 | . . . . . . . . . 22 . . . . . . . . . . . . . 64 . 172 . . . 168 30 19 114 Robot Analysis Total 8 | . . . 1 . . 1 1 . . . . . . . . 1 . . . . 4 . . . . . . . . . . . Derelict Logs Recovered 19 | . . 1 . 2 . . . . . . . 3 1 . 2 . . . 3 2 . 2 . . . 2 1 . . . . . Drone Launches . | . . . . . . . . . . . . . . . . . . . . . . . . . . . . . . . . . Drone Recoveries . | . . . . . . . . . . . . . . . . . . . . . . . . . . . . . . . . . Exploration | -11 -10 -10 -9 -9 -8 -8 -8 -8 -6 -6 -6 -6 -6 -6 -5 -5 -5 -5 -5 -5 -5 -4 -4 -4 -4 -4 -4 -4 -3 -3 -3 -3 ------------- Run | Yrd Mat Min Mat Min Mat Sto Rec Scr Fac Was Fac Low Low Dat Pro Fac Was Fac Upp Upp Zhi Pro Fac Was Fac Upp Upp War Pro Res Qua Frg Turns Passed 34544 | 126 1180 1257 3343 1712 1833 2129 1166 3056 1522 110 1193 269 260 20 295 1572 77 1004 449 262 94 429 741 35 701 453 208 671 447 212 496 7222 Spaces Moved 46092 | 57 602 677 1651 795 826 940 559 2181 3189 361 3001 806 928 78 673 2749 160 1823 573 683 179 1129 1507 91 1607 1263 687 1112 944 591 1289 12381 Core 3 | 3 . . . . . . . . . . . . . . . . . . . . . . . . . . . . . . . . Treads 7815 | 54 602 677 1651 795 826 940 559 1711 . . . . . . . . . . . . . . . . . . . . . . . . Legs . | . . . . . . . . . . . . . . . . . . . . . . . . . . . . . . . . . Wheels . | . . . . . . . . . . . . . . . . . . . . . . . . . . . . . . . . . Hover . | . . . . . . . . . . . . . . . . . . . . . . . . . . . . . . . . . Flight 38274 | . . . . . . . . 470 3189 361 3001 806 928 78 673 2749 160 1823 573 683 179 1129 1507 91 1607 1263 687 1112 944 591 1289 12381 Fastest Speed 13 | 50 160 160 160 160 158 155 161 27 25 25 25 25 25 25 25 24 25 24 24 24 24 24 16 23 13 19 26 17 24 15 14 14 Average Speed 50 | 154 160 160 160 174 159 159 161 131 25 25 25 25 25 25 25 24 25 24 24 24 38 24 22 23 23 25 26 25 24 23 21 33 Slowest Speed 240 | 160 240 160 160 240 162 161 238 161 95 25 95 25 25 25 25 25 25 95 24 24 88 24 24 23 27 26 26 100 24 25 25 119 Overloaded Moves 214 | . . . . . . . . . . . . . . . . . . . . . . . 8 . 9 6 . 17 . 15 11 148 Propulsion Burnouts . | . . . . . . . . . . . . . . . . . . . . . . . . . . . . . . . . . Robots Hopped 107 | . . . . . . . . . 12 . 5 . . . . 7 . 5 . 1 . . 12 . 10 . . 1 . . 5 49 Potential Cave-ins 80 | . . . . . . . . . 3 . . . . . . . . . . . . . . . . . . . . . . 77 Cave-ins Triggered 1 | . . . . . . . . . . . . . . . . . . . . . . . . . . . . . . . . 1 Teleports 1 | . . . . . . . . . . . . . . . . . . . . . . . . . . . . . . . . 1 Exploration Rate (%) 72 | 6 77 82 87 98 63 89 97 85 59 87 62 93 96 68 81 39 73 44 94 94 60 84 35 64 38 92 85 90 93 14 84 72 Regions Visited 32 Branch Regions 19 Pre-discovered Areas 28 | . . . 5 1 1 3 2 4 1 . 2 1 1 1 . . . . . 1 3 1 1 . . . . . . . . . Known Exits Taken 23 | . . . 1 1 1 1 1 1 . . 1 1 1 1 1 . . 1 1 1 1 1 . . 1 1 1 1 1 1 1 . Unknown Exits Taken 3 | 1 1 1 . . . . . . . . . . . . . . . . . . . . . . . . . . . . . . Scrap Searched 35 | . . 1 . 1 . . . 10 . . . 3 1 . 1 . . . 4 3 . 3 . . . 5 2 . 1 . . . Spaces Dug 481 | . . 1 1 . 3 5 . . 64 2 88 8 4 . 8 80 . 36 4 7 . 6 45 . 37 13 3 1 21 14 4 26 Terrain Destroyed 1016 | . . 1 1 1 5 70 . . 109 2 102 9 4 . 8 95 . 230 40 7 . 32 45 . 37 13 3 1 21 14 4 162 Melee 392 | . . . . . 3 5 . . 52 2 69 2 4 . 7 73 . 30 3 4 . 6 39 . 33 10 3 1 19 14 4 9 Projectile 205 | . . 1 1 1 2 1 . . . . 13 7 . . 1 7 . 7 2 3 . . 6 . 4 3 . . 2 . . 144 AOE 419 | . . . . . . 64 . . 57 . 20 . . . . 15 . 193 35 . . 26 . . . . . . . . . 9 Terrain Rammed . | . . . . . . . . . . . . . . . . . . . . . . . . . . . . . . . . . Walls Destroyed . | . . . . . . . . . . . . . . . . . . . . . . . . . . . . . . . . . Machines Disabled . | . . . . . . . . . . . . . . . . . . . . . . . . . . . . . . . . . Actions | -11 -10 -10 -9 -9 -8 -8 -8 -8 -6 -6 -6 -6 -6 -6 -5 -5 -5 -5 -5 -5 -5 -4 -4 -4 -4 -4 -4 -4 -3 -3 -3 -3 --------- Run | Yrd Mat Min Mat Min Mat Sto Rec Scr Fac Was Fac Low Low Dat Pro Fac Was Fac Upp Upp Zhi Pro Fac Was Fac Upp Upp War Pro Res Qua Frg Total 54350 | 79 723 807 2207 1083 1139 1400 765 2400 3755 374 3236 855 945 77 780 3397 196 2244 860 771 200 1274 1793 105 1819 1361 709 1496 1126 632 1465 14277 Wait 5111 | 2 35 89 389 254 152 277 125 109 427 9 68 29 10 . 94 464 37 289 259 75 . 132 192 11 136 68 13 330 158 6 109 763 Move 45862 | 56 601 676 1650 794 825 939 558 2180 3165 360 2990 805 927 77 672 2736 159 1812 572 680 178 1128 1489 90 1586 1262 686 1109 943 590 1279 12288 Hop 92 | . . . . . . . . . 12 . 5 . . . . 6 . 5 . 1 . . 6 . 10 . . 1 . . 4 42 Pick Up 240 | 6 12 5 27 2 10 15 2 39 13 1 8 . . . . 10 . 6 2 2 4 1 7 2 4 3 1 4 . 5 14 35 Fast Attach 133 | 7 7 1 2 2 1 7 . 1 2 . 7 . . . . 4 . 4 . . 3 . 4 . 4 3 . 18 . 1 2 53 Attach 123 | . 3 1 5 . 4 7 . 7 9 . 8 . . . . 10 . 16 4 2 3 . 10 . 3 1 . 1 . 3 4 22 Detach 64 | . . . . . 2 3 . 1 1 . 4 . . . . 6 . 12 4 2 1 1 6 . 2 . . 4 . . . 15 Swap 467 | 1 12 8 31 6 30 40 18 10 29 2 38 12 4 . 6 38 . 14 2 . 4 2 12 . 15 7 4 3 5 9 20 85 Drop 285 | . 4 7 28 5 13 20 3 52 14 . 8 . . . . 7 . 7 1 2 5 2 6 2 3 3 1 19 . 3 14 56 Fire 1224 | 7 47 20 74 20 97 82 17 . 6 . 17 7 . . 1 11 . 20 6 3 . 2 6 . 4 3 . 6 1 . . 767 Melee 601 | . . . . . 4 9 23 1 76 2 83 2 4 . 7 105 . 59 10 4 2 6 55 . 52 11 4 1 19 15 19 28 Ram . | . . . . . . . . . . . . . . . . . . . . . . . . . . . . . . . . . Kick . | . . . . . . . . . . . . . . . . . . . . . . . . . . . . . . . . . Crush 6 | . 2 . 1 . 1 1 1 . . . . . . . . . . . . . . . . . . . . . . . . . Escape Stasis 123 | . . . . . . . . . . . . . . . . . . . . . . . . . . . . . . . . 123 Rewire 18 | . . . . . . . 18 . . . . . . . . . . . . . . . . . . . . . . . . . Trap . | . . . . . . . . . . . . . . . . . . . . . . . . . . . . . . . . . Miscellaneous 1 | . . . . . . . . . 1 . . . . . . . . . . . . . . . . . . . . . . . Route ------- -11/Scrapyard -10/Materials (discovered 4 exits: *Mat x2 / *Min x2) -10/Mines (discovered 3 exits: *Mat x2 / [*Sub]) -9/Materials (discovered 5 exits: *Mat x3 / *Min x2) -9/Mines (discovered 2 exits: *Mat x2) -8/Materials (discovered 5 exits: *Fac x3 / *Sto x2) -8/Storage (discovered 2 exits: Fac / *Rec) -8/Recycling (discovered 2 exits: *Fac / *Scr) -8/Scraptown (discovered 2 exits: *Fac x2) -6/Factory (discovered 6 exits: *Fac x4 / Low x2) -6/Waste -6/Factory (discovered 6 exits: *Fac x4 / *Low x2) -6/Lower Caves -6/Lower Caves (discovered 2 exits: *Fac / *Dat) -6/Data Miner -5/Proximity Caves -5/Factory (discovered 8 exits: *Fac x4 / *Upp x2 / *Ext x2) -5/Waste -5/Factory (discovered 7 exits: *Fac x3 / *Upp x2 / Ext x2) -5/Upper Caves -5/Upper Caves (discovered 2 exits: *Fac / *Zhi) -5/Zhirov -4/Proximity Caves -4/Factory (discovered 6 exits: *Res x3 / *Upp x2 / Arm) -4/Waste -4/Factory (discovered 7 exits: *Res x4 / *Upp x2 / Arm) -4/Upper Caves -4/Upper Caves (discovered 2 exits: *Res / *War) -4/Warlord -3/Proximity Caves -3/Research (discovered 5 exits: Res x3 / *Qua x2) -3/Quarantine (discovered 3 exits: *Res / [*Sec] / *Frg) -3/Protoforge 0bPrime History --------- Turn | Location | Event 8 | -11/Scrapyard | Discovered new exit (range 14) 127 | -11/Scrapyard | Entered Materials 302 | -10/Materials | Build established: Mutant 636 | -10/Materials | Discovered new exit (range 4) 722 | -10/Materials | Discovered new exit (range 14) 1088 | -10/Materials | Discovered new exit (range 14) 1112 | -10/Materials | Lost 3 parts (2n1u) 1124 | -10/Materials | Discovered new exit (range 14) 1133 | -10/Materials | Core integrity fell below 50% 1307 | -10/Materials | Entered Mines 1429 | -10/Mines | Discovered new exit (range 5) 1687 | -10/Mines | Discovered new exit (range 8) 1761 | -10/Mines | A weapon hastily lodged in a ceiling crevice suddenly fell to the ground 1915 | -10/Mines | Discovered new exit (range 15) 1936 | -10/Mines | Assisted by bots powering up and referring to "LRC-V3" 2048 | -10/Mines | Met a Derelict who couldn't figure out how to use a Trap Extractor 2279 | -10/Mines | Learned 2 Materials zone layouts 2329 | -10/Mines | Core integrity fell below 20% 2564 | -10/Mines | Entered Materials 2564 | -9/Materials | Accompanied by 1 ally 2564 | -9/Materials | Evolved 2 slots: Propulsion x1, Utility x1 2565 | -9/Materials | Identified exit to Materials 3081 | -9/Materials | Discovered exit to Materials (range 16) 3714 | -9/Materials | Destroyed 7 combat bots 4215 | -9/Materials | Build established: Scavenger-Mutant 4334 | -9/Materials | Discovered new exit (range 13) 4350 | -9/Materials | Discovered new exit (range 15) 4513 | -9/Materials | Learned location of 1 exit from Storage 4591 | -9/Materials | Loaded intel: 21 trap records 4657 | -9/Materials | Learned location of Zion (-7) 4682 | -9/Materials | Identified exit to Mines 4712 | -9/Materials | Learned location of Storage (-8) 4756 | -9/Materials | Learned 2 Materials zone layouts 4791 | -9/Materials | Learned location of 1 exit from Materials 4849 | -9/Materials | Learned location of Recycling (-8) 4890 | -9/Materials | Learned location of 2 exits from Materials 4943 | -9/Materials | Learned Storage terminal intel 5465 | -9/Materials | Build established: Mutant 5813 | -9/Materials | Build established: Scavenger-Mutant 5907 | -9/Materials | Entered Mines 5907 | -9/Mines | Accompanied by 1 ally 6036 | -9/Mines | Joined a pair of Derelicts in attacking an 0b10 outpost 6084 | -9/Mines | Discovered exit to Materials (range 14) 6246 | -9/Mines | Discovered exit to Materials (range 6) 6554 | -9/Mines | Assembled infested the area 7619 | -9/Mines | Entered Materials 7619 | -8/Materials | Evolved 2 slots: Propulsion x1, Utility x1 7620 | -8/Materials | Identified exit to Factory 7620 | -8/Materials | Identified exit to Storage 7866 | -8/Materials | Central database locked down 8548 | -8/Materials | Discovered exit to Factory (range 8) 8656 | -8/Materials | Learned location of 1 exit from Extension 8733 | -8/Materials | Learned Storage trap positions 8800 | -8/Materials | Learned Factory security intel 8856 | -8/Materials | Learned Factory scanalyzer intel 8902 | -8/Materials | Learned 2 Lower Caves zone layouts 8936 | -8/Materials | Learned Storage trap positions 9317 | -8/Materials | Build established: Mutant 9452 | -8/Materials | Entered Storage 9452 | -8/Storage | Accompanied by 1 ally 9453 | -8/Storage | Identified exit to Recycling 9455 | -8/Storage | Loaded intel: 22 trap records 9456 | -8/Storage | Loaded intel: 15 terminal locations 9613 | -8/Storage | Lost 3 parts (1n1u1w) 9885 | -8/Storage | Learned location of Armory (-4) 10339 | -8/Storage | Repaired Arm. Treads? 10411 | -8/Storage | Learned location of 3 exits from Factory 10439 | -8/Storage | Learned location of 1 exit from Recycling 10444 | -8/Storage | Build established: Scavenger-Mutant 10455 | -8/Storage | Learned Factory repair station intel 10462 | -8/Storage | Learned location of 3 exits from Factory 10508 | -8/Storage | Learned location of 2 exits from Factory 10549 | -8/Storage | Learned location of Extension (-5) 10848 | -8/Storage | Used back door to open Recycling access 10993 | -8/Storage | Build established: Mutant 11581 | -8/Storage | Entered Recycling 11581 | -8/Recycling | Accompanied by 1 ally 11582 | -8/Recycling | Met a Zionite searching for Scraptown 11582 | -8/Recycling | Identified exit to Scraptown 11819 | -8/Recycling | Discovered new exit (range 4) 11881 | -8/Recycling | Core integrity fell below 50% 12359 | -8/Recycling | Build established: Commander-Mutant 12364 | -8/Recycling | Learned location of 1 exit from Lower Caves 12428 | -8/Recycling | Learned Factory trap positions 12484 | -8/Recycling | Learned 4 Factory zone layouts 12532 | -8/Recycling | Learned location of 3 exits from Factory 12598 | -8/Recycling | Scanned before Scraplab entrance 12599 | -8/Recycling | Learned Storage trap positions 12636 | -8/Recycling | Learned location of 1 exit from Lower Caves 12740 | -8/Recycling | Learned Factory repair station intel 12747 | -8/Recycling | Entered Scraptown 12747 | -8/Scraptown | Accompanied by 8 allies 12747 | -8/Scraptown | System corruption cleaned by C-Scrubber 13023 | -8/Scraptown | Discovered new exit (range 13) 13164 | -8/Scraptown | Visited Cyclists 13177 | -8/Scraptown | Visited IN-MT5's Study 13233 | -8/Scraptown | Visited Assassins FH 13251 | -8/Scraptown | Visited Shadow of the Wyrm 13277 | -8/Scraptown | Visited Bundlers 13375 | -8/Scraptown | Visited The Evicted 13388 | -8/Scraptown | Visited TADAMA 13644 | -8/Scraptown | Visited UFD Registry 13644 | -8/Scraptown | Registered with UFD as "Gunninja" 13682 | -8/Scraptown | Visited A0-MCA Data Center 13705 | -8/Scraptown | Visited Derelict Rescue Squad 13750 | -8/Scraptown | Visited Science Guys 13808 | -8/Scraptown | Visited Chapter 10 13847 | -8/Scraptown | Visited DA-N13 Charitable Foundation 13863 | -8/Scraptown | Found DCF Scrap (30 items) 13899 | -8/Scraptown | Visited Scrapoid Research Area 13921 | -8/Scraptown | Visited Botcube Research 13950 | -8/Scraptown | Visited Research Penetration Think Tank 13990 | -8/Scraptown | Visited Cartography Club 14162 | -8/Scraptown | Found Lrg. Botcube 15274 | -8/Scraptown | Visited Scrap Suit Storage 15280 | -8/Scraptown | Found Scrap Suit 15283 | -8/Scraptown | Found Scrap Suit 15385 | -8/Scraptown | Lrg. Botcube activated 15421 | -8/Scraptown | Lrg. Botcube completed mutation into treaded form, armed with 4 guns. 15570 | -8/Scraptown | Found Surveybot 17 Chip 15585 | -8/Scraptown | Learned location of Testing (-2) 15585 | -8/Scraptown | Learned 8 Materials zone layouts 15585 | -8/Scraptown | Learned 12 Materials zone layouts 15585 | -8/Scraptown | Learned 12 Factory zone layouts 15585 | -8/Scraptown | Learned 16 Factory zone layouts 15585 | -8/Scraptown | Learned 4 Mines zone layouts 15585 | -8/Scraptown | Learned 8 Lower Caves zone layouts 15585 | -8/Scraptown | Learned 12 Proximity Caves zone layouts 15585 | -8/Scraptown | Learned 8 Upper Caves zone layouts 15585 | -8/Scraptown | Learned Factory emergency access door positions 15585 | -8/Scraptown | Learned location of 2 exits from Factory 15585 | -8/Scraptown | Learned location of 2 exits from Research 15585 | -8/Scraptown | Learned location of 2 exits from Proximity Caves 15593 | -8/Scraptown | Found Deep Structural Scanner 15714 | -8/Scraptown | Discovered new exit (range 5) 15726 | -8/Scraptown | Identified exit to Factory 15787 | -8/Scraptown | Met Optimus 15787 | -8/Scraptown | Accepted into 0bPrime 15803 | -8/Scraptown | Entered Factory 15803 | -6/Factory | Accompanied by 7 allies 15803 | -6/Factory | Evolved 4 slots: Propulsion x1, Utility x3 15804 | -6/Factory | Identified exit to Lower Caves 15805 | -6/Factory | Identified exit to Factory 15807 | -6/Factory | Loaded intel: 126 trap records 15810 | -6/Factory | Loaded intel: 6 repair station locations 15811 | -6/Factory | Loaded intel: 4 scanalyzer locations 15820 | -6/Factory | Central database locked down 16013 | -6/Factory | Loaded intel: 8 recycling unit locations 16014 | -6/Factory | Fabricated G-50 Soldier? 16153 | -6/Factory | Build established: Hacker-Sprinter 16154 | -6/Factory | Learned location of Protoforge (-3) 17127 | -6/Factory | Garrison activated, responded to threat 17325 | -6/Factory | Sucked down chute 17325 | -6/Factory | Entered Waste 17326 | -6/Waste | Met a frightened Derelict 17333 | -6/Waste | Spotted C-40 Crusher 17333 | -6/Waste | Spotted C-40 Crusher 17333 | -6/Waste | Spotted C-40 Crusher 17340 | -6/Waste | EMP discharged 17340 | -6/Waste | System corruption reached 10% 17346 | -6/Waste | Spotted C-40 Crusher 17357 | -6/Waste | Met Warlord forces unprepared to attack 17384 | -6/Waste | Spotted C-40 Crusher 17385 | -6/Waste | Spotted C-40 Crusher 17416 | -6/Waste | Allies destroyed C-40 Crusher 17417 | -6/Waste | Allies destroyed C-40 Crusher 17426 | -6/Waste | Discovered new exit (range 16) 17434 | -6/Waste | Lost 5 allies 17434 | -6/Waste | Identified exit to Factory 17435 | -6/Waste | Entered Factory 17435 | -6/Factory | Accompanied by 1 ally 17438 | -6/Factory | Loaded intel: 6 repair station locations 17534 | -6/Factory | Loaded intel: 8 recycling unit locations 18005 | -6/Factory | Repaired Adv. Sensor Array 18047 | -6/Factory | Repaired Imp. Light Armor Plating 18088 | -6/Factory | Repaired Imp. Utility Shielding? 18097 | -6/Factory | Learned location of 2 exits from Archives 18126 | -6/Factory | Learned location of Warlord (-4) 18146 | -6/Factory | Loaded intel: 54 interactive machine locations 18156 | -6/Factory | Learned Extension security intel 18176 | -6/Factory | Learned Extension trap positions 18206 | -6/Factory | Learned location of 1 exit from Upper Caves 18248 | -6/Factory | Loaded intel: 6 fabricator locations 18300 | -6/Factory | Learned location of 2 exits from Archives 18348 | -6/Factory | Fabricated Mni. Grenade Launcher? 18628 | -6/Factory | Entered Lower Caves 18629 | -6/Lower Caves | Identified exit to Lower Caves 18682 | -6/Lower Caves | Spotted B-75 Beast 18733 | -6/Lower Caves | Learned Factory terminal intel 18897 | -6/Lower Caves | Entered another Lower Caves area 18920 | -6/Lower Caves | Build established: Hacker-Scout 19017 | -6/Lower Caves | Encountered a Warlord checkpoint 19050 | -6/Lower Caves | Learned Factory emergency access door positions 19077 | -6/Lower Caves | Entered an active Warlord outpost 19078 | -6/Lower Caves | Learned Factory trap positions 19078 | -6/Lower Caves | Learned Research trap positions 19078 | -6/Lower Caves | Learned Factory stockpile data 19078 | -6/Lower Caves | Learned Factory garrison access intel 19080 | -6/Lower Caves | A Commander dispatched an escort 19123 | -6/Lower Caves | Discovered new exit (range 15) 19157 | -6/Lower Caves | Identified exit to Data Miner 19157 | -6/Lower Caves | Entered Data Miner 19157 | -6/Data Miner | Discovered new exit (range 6) 19162 | -6/Data Miner | Met Data Miner 19167 | -6/Data Miner | Learned location of Section 7 (-3) 19167 | -6/Data Miner | Acquired the access code to Warlord's prototype stash 19171 | -6/Data Miner | Received God Mode back door access code from Data Miner 19177 | -6/Data Miner | Identified exit to Proximity Caves 19177 | -6/Data Miner | Entered Proximity Caves 19430 | -5/Proximity Caves | Learned location of 1 exit from Factory 19471 | -5/Proximity Caves | Spotted B-75 Beast 19472 | -5/Proximity Caves | Entered Factory 19472 | -5/Factory | Evolved 2 slots: Utility x2 19473 | -5/Factory | Identified exit to Upper Caves 19473 | -5/Factory | Identified exit to Extension 19474 | -5/Factory | Identified exit to Factory 19475 | -5/Factory | Loaded intel: 99 trap records 19478 | -5/Factory | Loaded intel: 28 terminal locations 19479 | -5/Factory | Loaded intel: 4 garrison access locations 19515 | -5/Factory | Spotted B-75 Beast 19625 | -5/Factory | Unchained authorized (GL-D0S) 20421 | -5/Factory | Build established: Hacker-Sprinter 20462 | -5/Factory | Fabricated Mni. Smartbomb Launcher (x1) 20640 | -5/Factory | Loaded intel: 8 recycling unit locations 20658 | -5/Factory | Incoming investigation squad redirected 20716 | -5/Factory | Repaired Imp. VTOL Module? 20951 | -5/Factory | Repaired Adv. Sensor Array 21044 | -5/Factory | Sucked down chute 21044 | -5/Factory | Entered Waste 21051 | -5/Waste | Spotted C-40 Crusher 21067 | -5/Waste | Spotted C-40 Crusher 21068 | -5/Waste | Spotted C-40 Crusher 21105 | -5/Waste | Spotted C-40 Crusher 21116 | -5/Waste | Spotted C-40 Crusher 21118 | -5/Waste | Discovered new exit (range 16) 21121 | -5/Waste | Identified exit to Factory 21121 | -5/Waste | Entered Factory 21336 | -5/Factory | Unchained authorized (GL-D0S) 21413 | -5/Factory | Loaded intel: 8 recycling unit locations 21418 | -5/Factory | Build established: Hacker-Scout 21561 | -5/Factory | Discovered exit to Factory (range 16) 21663 | -5/Factory | Fabricated Exp. Utility Shielding? 21704 | -5/Factory | Fabricated B-60 Warrior (x3) 21721 | -5/Factory | First assault squad dispatched 21846 | -5/Factory | Discovered exit to Factory (range 15) 21858 | -5/Factory | System corruption reached 10% 21989 | -5/Factory | Fabricated Adv. Hacking Suite (x1) 22116 | -5/Factory | Fabricated Lgt. Regenerative Plating (x1) 22125 | -5/Factory | Entered Upper Caves 22125 | -5/Upper Caves | Accompanied by 1 ally 22126 | -5/Upper Caves | Identified exit to Upper Caves 22405 | -5/Upper Caves | Learned location of 1 exit from Factory 22474 | -5/Upper Caves | Learned 4 Factory zone layouts 22574 | -5/Upper Caves | Entered another Upper Caves area 22597 | -5/Upper Caves | Encountered a Warlord checkpoint 22636 | -5/Upper Caves | Discovered exit to Factory (range 10) 22641 | -5/Upper Caves | Learned Factory security intel 22744 | -5/Upper Caves | Spotted B-75 Beast 22764 | -5/Upper Caves | Discovered new exit (range 9) 22836 | -5/Upper Caves | Identified exit to Zhirov 22836 | -5/Upper Caves | Entered Zhirov 22836 | -5/Zhirov | Discovered new exit (range 3) 22838 | -5/Zhirov | Identified exit to Proximity Caves 22846 | -5/Zhirov | Learned location of Quarantine (-3) 22846 | -5/Zhirov | Learned location of Command (-1) 22855 | -5/Zhirov | Found Alien Artifact 22855 | -5/Zhirov | Identified Integrated Dissipator 22855 | -5/Zhirov | Installed Integrated Dissipator, increased core heat dissipation (+20) 22895 | -5/Zhirov | Found Alien Artifact 22930 | -5/Zhirov | Entered Proximity Caves 23135 | -4/Proximity Caves | Learned location of 1 exit from Research 23359 | -4/Proximity Caves | Entered Factory 23359 | -4/Factory | Evolved 2 slots: Power x1, Propulsion x1 23360 | -4/Factory | Identified exit to Research 23360 | -4/Factory | Identified exit to Armory 23361 | -4/Factory | Identified exit to Upper Caves 23435 | -4/Factory | Repaired Imp. VTOL Module? 23509 | -4/Factory | Unchained authorized (GL-D0S) 23571 | -4/Factory | Learned location of 2 exits from Factory 23581 | -4/Factory | Loaded intel: 8 recycling unit locations 23620 | -4/Factory | Fabricated Y-64 Sentinel? 23635 | -4/Factory | Learned 4 Factory zone layouts 23691 | -4/Factory | Learned 4 Upper Caves zone layouts 23695 | -4/Factory | Learned location of 2 exits from Factory 23698 | -4/Factory | Learned 4 Quarantine zone layouts 23699 | -4/Factory | Learned location of 2 exits from Factory 23709 | -4/Factory | Learned 8 Research zone layouts 23731 | -4/Factory | Learned location of 2 exits from Upper Caves 23758 | -4/Factory | Fabricated Lrn. Sensor Array? 23785 | -4/Factory | Identified Transdimensional Reconstructor 23965 | -4/Factory | Fabricated Cld. Nuclear Pulse Thruster (x1) 24073 | -4/Factory | Repaired Imp. Surge Thruster+ 24100 | -4/Factory | Sucked down chute 24100 | -4/Factory | Entered Waste 24103 | -4/Waste | Found Prototype Reactor 24106 | -4/Waste | Spotted C-40 Crusher 24114 | -4/Waste | Spotted C-40 Crusher 24115 | -4/Waste | EMP discharged 24115 | -4/Waste | System corruption reached 10% 24120 | -4/Waste | Spotted C-40 Crusher 24122 | -4/Waste | Discovered new exit (range 10) 24124 | -4/Waste | Identified exit to Factory 24135 | -4/Waste | Entered Factory 24177 | -4/Factory | Build established: Hacker-Sprinter 24377 | -4/Factory | Loaded intel: 8 recycling unit locations 24424 | -4/Factory | Spotted B-86 Titan 24514 | -4/Factory | Spotted B-86 Titan 24543 | -4/Factory | Unchained authorized (QV-33N) 24611 | -4/Factory | Fabricated Cld. Nuclear Pulse Thruster? 24630 | -4/Factory | Scrapoids reinforcements arrived? 24673 | -4/Factory | Learned Research terminal intel 24723 | -4/Factory | Lost 4 allies 24744 | -4/Factory | Learned location of 2 exits from Upper Caves 24757 | -4/Factory | Repaired Mic. Fission Core+ 24788 | -4/Factory | Repaired Mic. Fission Core+ 24800 | -4/Factory | Learned Research garrison access intel 24836 | -4/Factory | Entered Upper Caves 24837 | -4/Upper Caves | Identified exit to Upper Caves 24851 | -4/Upper Caves | Learned location of 1 exit from Upper Caves 24943 | -4/Upper Caves | Learned Research garrison access intel 24967 | -4/Upper Caves | Learned location of 1 exit from Proximity Caves 24967 | -4/Upper Caves | Learned Factory trap positions 24967 | -4/Upper Caves | Learned Factory emergency access door positions 24967 | -4/Upper Caves | Learned Armory stockpile data 24967 | -4/Upper Caves | Learned Extension terminal intel 25262 | -4/Upper Caves | Build established: Hacker-Scout 25289 | -4/Upper Caves | Entered another Upper Caves area 25290 | -4/Upper Caves | Identified exit to Warlord 25294 | -4/Upper Caves | Encountered a Warlord checkpoint 25407 | -4/Upper Caves | Learned Research trap positions 25497 | -4/Upper Caves | Entered Warlord 25506 | -4/Warlord | System corruption cleaned by Quarantine Array 25581 | -4/Warlord | Received a Watcher feed algorithm from an ecstatic Tinkerer 25612 | -4/Warlord | Opened Warlord's prototype stash 25614 | -4/Warlord | Found Prototype Reactor 25614 | -4/Warlord | Identified Vortex Chain Reactor 25620 | -4/Warlord | Found Prototype Processor 25620 | -4/Warlord | Identified Exp. Targeting Computer 25628 | -4/Warlord | Found Prototype Processor 25628 | -4/Warlord | Identified Exp. Armor Integrity Analyzer 25642 | -4/Warlord | Found Prototype Hackware 25642 | -4/Warlord | Identified Ghost Barrier 25652 | -4/Warlord | Rebuked by Warlord 25668 | -4/Warlord | Visited the Vortex Lab 25671 | -4/Warlord | Found Prototype Energy Cannon 25671 | -4/Warlord | Identified Vortex Driver 25674 | -4/Warlord | Found Prototype Energy Gun 25674 | -4/Warlord | Identified Vortex Rifle 25677 | -4/Warlord | Warlord's base attacked by MAIN.C 25686 | -4/Warlord | Found Vortex Driver 25862 | -4/Warlord | Spotted B-90 Cyclops 25896 | -4/Warlord | Build established: Hacker-Sprinter 25915 | -4/Warlord | Lost 3 allies 25954 | -4/Warlord | Spotted B-86 Titan 26027 | -4/Warlord | Warlord forces counterattacked 26091 | -4/Warlord | P-80 Master assimilated allied F5-C23(g) 26104 | -4/Warlord | Opened side exit 26105 | -4/Warlord | Spotted Striker 26118 | -4/Warlord | Spotted Executioner 26146 | -4/Warlord | Spotted Striker 26166 | -4/Warlord | Spotted Executioner 26167 | -4/Warlord | Discovered new exit (range 11) 26168 | -4/Warlord | Identified exit to Proximity Caves 26168 | -4/Warlord | Entered Proximity Caves 26197 | -3/Proximity Caves | Lost 16 allies 26526 | -3/Proximity Caves | Found DCF Scrap (11 items) 26615 | -3/Proximity Caves | Entered Research 26615 | -3/Research | Evolved 2 slots: Propulsion x1, Utility x1 26616 | -3/Research | Identified exit to Quarantine 26617 | -3/Research | Identified exit to Research 26619 | -3/Research | Loaded intel: 101 trap records 26619 | -3/Research | Found Prototype Launcher 26620 | -3/Research | Loaded intel: 23 terminal locations 26621 | -3/Research | Loaded intel: 3 garrison access locations 26669 | -3/Research | Repaired Exp. Utility Shielding? 26673 | -3/Research | Identified Com. Tesla Bomb Launcher 26785 | -3/Research | Loaded intel: 5 recycling unit locations 26787 | -3/Research | Unchained authorized (QV-33N) 26800 | -3/Research | Spotted B-86 Titan 26827 | -3/Research | Entered Quarantine 26868 | -3/Quarantine | Found Alien Artifact 26868 | -3/Quarantine | Identified Phase Redirector 26878 | -3/Quarantine | Cryocooling Duct disabled 26887 | -3/Quarantine | Found Alien Artifact 26893 | -3/Quarantine | Ambient heat levels rising (+20) 26893 | -3/Quarantine | Non-combat units ordered to evacuate 26950 | -3/Quarantine | Build established: Hacker-Scout 27039 | -3/Quarantine | Identified Subatomic Replicator 27051 | -3/Quarantine | Discovered exit to Research (range 14) 27059 | -3/Quarantine | Repaired Cld. Nuclear Pulse Thruster? 27163 | -3/Quarantine | Repaired Exp. Utility Shielding 27214 | -3/Quarantine | Found Alien Artifact 27215 | -3/Quarantine | Identified Dimensional Node Initializer 27215 | -3/Quarantine | Initialized slip node 27218 | -3/Quarantine | Found Dimensional Node Initializer 27220 | -3/Quarantine | Used Subatomic Replicator to create Alien Artifact 27285 | -3/Quarantine | Spotted Fortress 27318 | -3/Quarantine | Discovered new exit (range 6) 27318 | -3/Quarantine | Discovered new exit (range 7) 27319 | -3/Quarantine | Identified exit to Protoforge 27323 | -3/Quarantine | Entered Protoforge 27371 | -3/Protoforge | Spotted B-86 Titan 27427 | -3/Protoforge | Discovered exit to Research (range 15) 27515 | -3/Protoforge | Found Prototype Device 27705 | -3/Protoforge | Superfortress began startup sequence 27749 | -3/Protoforge | Spotted EXE-6 27749 | -3/Protoforge | Spotted EXE-6 27756 | -3/Protoforge | UFD initiated attack on Protoforge 27756 | -3/Protoforge | Loaded intel: 3 recycling unit locations 27779 | -3/Protoforge | Found Prototype Processor 27780 | -3/Protoforge | Identified Exp. Core Analyzer 27783 | -3/Protoforge | Found Exp. Core Analyzer 27784 | -3/Protoforge | Found Prototype Device 27785 | -3/Protoforge | Identified Exp. Kinecellerator 27788 | -3/Protoforge | Found Prototype Ballistic Gun 27792 | -3/Protoforge | Optimus greeted in Protoforge 27815 | -3/Protoforge | Found Exp. Armor Integrity Analyzer 27817 | -3/Protoforge | Spotted SKR-2 27817 | -3/Protoforge | Spotted SKR-2 27818 | -3/Protoforge | Identified Cep. XC Strikerail 27820 | -3/Protoforge | Spotted SKR-2 27828 | -3/Protoforge | Spotted EXE-6 27853 | -3/Protoforge | Identified Supercharged TR 27853 | -3/Protoforge | Warped through subspace 27856 | -3/Protoforge | Spotted Decapitator 27861 | -3/Protoforge | Fabricated L-61 Swordsman? 27868 | -3/Protoforge | Spotted Executioner 27882 | -3/Protoforge | System corruption reached 10% 27883 | -3/Protoforge | Spotted Hotshot 27883 | -3/Protoforge | Spotted Striker 27883 | -3/Protoforge | Spotted Striker 27883 | -3/Protoforge | Spotted Hotshot 27887 | -3/Protoforge | Met 7R-MNS 27893 | -3/Protoforge | Optimus attacked Superfortress 27893 | -3/Protoforge | Destroyed Superfortress 27897 | -3/Protoforge | Found Prototype Device 27899 | -3/Protoforge | Found Prototype Storage 27899 | -3/Protoforge | Identified Cep. NT7 Matterbank 27901 | -3/Protoforge | Allies destroyed Striker 27904 | -3/Protoforge | Identified Exp. EM Disruption Field 27906 | -3/Protoforge | Found Prototype Ballistic Cannon 27906 | -3/Protoforge | Identified Omega Cannon 27907 | -3/Protoforge | Identified Cep. Antimissile System 27907 | -3/Protoforge | Forge Plexus network access discovered 27909 | -3/Protoforge | Found Cep. Chromion Battery 27911 | -3/Protoforge | Found Cep. Zero-point Core 27917 | -3/Protoforge | Found Cep. Zero-point Core 27924 | -3/Protoforge | Found Cep. Plasma Driver 27926 | -3/Protoforge | Lost 5 parts (1n3u1w) 27931 | -3/Protoforge | Lost 29 allies 28012 | -3/Protoforge | Spotted Striker 28056 | -3/Protoforge | Lost 5 allies 28074 | -3/Protoforge | Spotted Striker 28077 | -3/Protoforge | Spotted Striker 28092 | -3/Protoforge | Allies destroyed Striker 28126 | -3/Protoforge | Lost 3 allies 28150 | -3/Protoforge | Spotted Striker 28154 | -3/Protoforge | Spotted Striker 28154 | -3/Protoforge | Spotted Hotshot 28173 | -3/Protoforge | Spotted Hotshot 28180 | -3/Protoforge | UFD reported confirmed Drillbomb installation 28185 | -3/Protoforge | Spotted Overlord 28194 | -3/Protoforge | Spotted Executioner 28194 | -3/Protoforge | Spotted Executioner 28207 | -3/Protoforge | Spotted Executioner 28207 | -3/Protoforge | Spotted Executioner 28213 | -3/Protoforge | Spotted Executioner 28270 | -3/Protoforge | Lost 21 allies 28277 | -3/Protoforge | Found Exp. System Purifier 28350 | -3/Protoforge | Found Crosscalibrator 28362 | -3/Protoforge | Found Faulty Cep. Networked Targeting System 28366 | -3/Protoforge | Found Faulty Cep. Networked Targeting System 28412 | -3/Protoforge | Spotted Executioner 28413 | -3/Protoforge | Spotted Executioner 28429 | -3/Protoforge | Spotted Executioner 28441 | -3/Protoforge | Spotted Executioner 28484 | -3/Protoforge | Spotted Striker 28486 | -3/Protoforge | Build established: Scavenger-Sprinter 28498 | -3/Protoforge | Spotted Striker 28520 | -3/Protoforge | UFD reported confirmed Drillbomb installation 28538 | -3/Protoforge | Lost 3 allies 28551 | -3/Protoforge | UFD reported confirmed Drillbomb installation 28585 | -3/Protoforge | Spotted Executioner 28585 | -3/Protoforge | Spotted Striker 28592 | -3/Protoforge | Spotted Striker 28598 | -3/Protoforge | Spotted Executioner 28606 | -3/Protoforge | UFD reported confirmed Drillbomb installation 28616 | -3/Protoforge | Spotted Hotshot 28616 | -3/Protoforge | Spotted Hotshot 28646 | -3/Protoforge | Lost 5 allies 28649 | -3/Protoforge | Spotted Striker 28650 | -3/Protoforge | Spotted Striker 28651 | -3/Protoforge | Spotted Striker 28659 | -3/Protoforge | Spotted Striker 28693 | -3/Protoforge | Destroyed Striker 28706 | -3/Protoforge | Destroyed Striker 28711 | -3/Protoforge | Lost 3 allies 28744 | -3/Protoforge | Spotted Hotshot 28748 | -3/Protoforge | Destroyed Hotshot 28750 | -3/Protoforge | Spotted Hotshot 28755 | -3/Protoforge | Destroyed Hotshot 28772 | -3/Protoforge | Spotted Executioner 28776 | -3/Protoforge | Destroyed 8 combat bots 28776 | -3/Protoforge | Destroyed Executioner 28783 | -3/Protoforge | Spotted Striker 28784 | -3/Protoforge | Spotted Executioner 28784 | -3/Protoforge | Spotted Executioner 28792 | -3/Protoforge | Spotted Executioner 28859 | -3/Protoforge | Spotted Executioner 28861 | -3/Protoforge | Lost 14 allies 28868 | -3/Protoforge | Destroyed Executioner 28881 | -3/Protoforge | Destroyed Executioner 28904 | -3/Protoforge | Lost 3 allies 28909 | -3/Protoforge | Destroyed 10 combat bots 28919 | -3/Protoforge | Spotted Executioner 28996 | -3/Protoforge | Spotted Striker 29002 | -3/Protoforge | Spotted Striker 29008 | -3/Protoforge | Destroyed Striker 29013 | -3/Protoforge | Destroyed Striker 29074 | -3/Protoforge | Lost 6 allies 29088 | -3/Protoforge | Spotted Striker 29088 | -3/Protoforge | Spotted Executioner 29088 | -3/Protoforge | Spotted Striker 29088 | -3/Protoforge | Spotted Executioner 29094 | -3/Protoforge | Spotted Striker 29109 | -3/Protoforge | Destroyed Striker 29131 | -3/Protoforge | Spotted Striker 29133 | -3/Protoforge | Spotted Striker 29160 | -3/Protoforge | Lost 6 allies 29166 | -3/Protoforge | Destroyed Striker 29176 | -3/Protoforge | Spotted Executioner 29177 | -3/Protoforge | Spotted Striker 29179 | -3/Protoforge | Destroyed Executioner 29181 | -3/Protoforge | Destroyed Striker 29217 | -3/Protoforge | Destroyed 7 combat bots 29235 | -3/Protoforge | Spotted Executioner 29236 | -3/Protoforge | Spotted Hotshot 29236 | -3/Protoforge | Spotted Hotshot 29239 | -3/Protoforge | Destroyed Hotshot 29241 | -3/Protoforge | Destroyed Hotshot 29337 | -3/Protoforge | Spotted Executioner 29344 | -3/Protoforge | Spotted Executioner 29348 | -3/Protoforge | UFD reported confirmed Drillbomb installation 29362 | -3/Protoforge | Destroyed Executioner 29388 | -3/Protoforge | P-80 Master assimilated allied 03FDK-D 29388 | -3/Protoforge | Spotted Executioner 29388 | -3/Protoforge | Spotted Striker 29425 | -3/Protoforge | UFD reported confirmed Drillbomb installation 29434 | -3/Protoforge | Lost 5 allies 29441 | -3/Protoforge | Build established: Scavenger-Mutant 29471 | -3/Protoforge | Spotted Striker 29474 | -3/Protoforge | Destroyed Striker 29476 | -3/Protoforge | Spotted Executioner 29476 | -3/Protoforge | Destroyed Executioner 29568 | -3/Protoforge | Spotted Striker 29580 | -3/Protoforge | Destroyed Striker 29583 | -3/Protoforge | Spotted Striker 29585 | -3/Protoforge | P-80 Master assimilated allied 03FDP-D 29599 | -3/Protoforge | Lost 3 allies 29668 | -3/Protoforge | Spotted Executioner 29686 | -3/Protoforge | Spotted Executioner 29701 | -3/Protoforge | Destroyed Executioner 29705 | -3/Protoforge | Spotted Executioner 29714 | -3/Protoforge | Destroyed Executioner 29742 | -3/Protoforge | Destroyed 7 combat bots 29746 | -3/Protoforge | Spotted Executioner 29748 | -3/Protoforge | Spotted Striker 29749 | -3/Protoforge | Destroyed Executioner 29757 | -3/Protoforge | Destroyed Striker 29771 | -3/Protoforge | Spotted Executioner 29773 | -3/Protoforge | Spotted Striker 29777 | -3/Protoforge | Destroyed Executioner 29845 | -3/Protoforge | Spotted Striker 29847 | -3/Protoforge | Destroyed Striker 29850 | -3/Protoforge | Spotted Striker 29858 | -3/Protoforge | Destroyed Striker 29867 | -3/Protoforge | Spotted Executioner 29888 | -3/Protoforge | Destroyed 17 combat bots 29889 | -3/Protoforge | Spotted Executioner 29890 | -3/Protoforge | Destroyed Executioner 29901 | -3/Protoforge | Spotted Executioner 29908 | -3/Protoforge | Spotted Executioner 29919 | -3/Protoforge | Core integrity fell below 50% 29954 | -3/Protoforge | Destroyed Executioner 29955 | -3/Protoforge | Spotted Executioner 29998 | -3/Protoforge | Lost 10 allies 30008 | -3/Protoforge | Found Exp. Targeting Computer 30039 | -3/Protoforge | Spotted Executioner 30063 | -3/Protoforge | Found Cep. Core Shell 30110 | -3/Protoforge | Spotted Executioner 30110 | -3/Protoforge | Destroyed Executioner 30113 | -3/Protoforge | Spotted Executioner 30116 | -3/Protoforge | Destroyed Executioner 30150 | -3/Protoforge | Spotted Striker 30153 | -3/Protoforge | Spotted Striker 30155 | -3/Protoforge | Destroyed Striker 30166 | -3/Protoforge | Spotted Executioner 30168 | -3/Protoforge | UFD reported confirmed Drillbomb installation 30181 | -3/Protoforge | Spotted Striker 30187 | -3/Protoforge | Destroyed Striker 30230 | -3/Protoforge | Lost 5 allies 30237 | -3/Protoforge | Spotted Executioner 30263 | -3/Protoforge | Spotted Executioner 30276 | -3/Protoforge | Spotted Striker 30279 | -3/Protoforge | Spotted Executioner 30298 | -3/Protoforge | Spotted Executioner 30314 | -3/Protoforge | Lost 5 allies 30337 | -3/Protoforge | Triborg destroyed during the operation 30337 | -3/Protoforge | Optimus emerged from Triborg 30338 | -3/Protoforge | Spotted Executioner 30344 | -3/Protoforge | Destroyed Executioner 30368 | -3/Protoforge | Lost 3 allies 30423 | -3/Protoforge | Spotted Executioner 30426 | -3/Protoforge | Spotted Executioner 30426 | -3/Protoforge | Spotted Executioner 30458 | -3/Protoforge | Lost 4 allies 30462 | -3/Protoforge | Spotted V519-s 30484 | -3/Protoforge | Spotted Executioner 30562 | -3/Protoforge | Spotted Striker 30562 | -3/Protoforge | Spotted Striker 30623 | -3/Protoforge | Spotted Executioner 30640 | -3/Protoforge | Spotted Executioner 30641 | -3/Protoforge | Destroyed Executioner 30644 | -3/Protoforge | Destroyed Executioner 30650 | -3/Protoforge | Spotted Executioner 30650 | -3/Protoforge | Spotted Executioner 30692 | -3/Protoforge | Spotted Executioner 30695 | -3/Protoforge | Destroyed Executioner 30710 | -3/Protoforge | Lost 5 allies 30734 | -3/Protoforge | Spotted Striker 30739 | -3/Protoforge | Destroyed Striker 30742 | -3/Protoforge | Spotted Executioner 30744 | -3/Protoforge | Spotted Executioner 30775 | -3/Protoforge | Lost 3 allies 30814 | -3/Protoforge | Spotted Immortal 30814 | -3/Protoforge | Spotted Immortal 30817 | -3/Protoforge | Spotted Decapitator 30817 | -3/Protoforge | Spotted Decapitator 30817 | -3/Protoforge | Spotted Decapitator 30817 | -3/Protoforge | Spotted Decapitator 30845 | -3/Protoforge | Found Cep. Core Shell 30848 | -3/Protoforge | Found Cep. Core Shell 30884 | -3/Protoforge | Spotted Striker 30889 | -3/Protoforge | Destroyed Striker 30961 | -3/Protoforge | Lost 7 allies 30984 | -3/Protoforge | Destroyed Executioner 30996 | -3/Protoforge | Spotted Striker 31032 | -3/Protoforge | Spotted Striker 31034 | -3/Protoforge | Destroyed Striker 31039 | -3/Protoforge | Spotted Executioner 31040 | -3/Protoforge | Spotted Striker 31064 | -3/Protoforge | P-80 Master assimilated allied MJ-K8F(E) 31103 | -3/Protoforge | Build established: Scavenger-Sprinter 31104 | -3/Protoforge | Lost 11 allies 31148 | -3/Protoforge | Spotted Striker 31148 | -3/Protoforge | Spotted Striker 31158 | -3/Protoforge | Destroyed Striker 31164 | -3/Protoforge | Destroyed Striker 31215 | -3/Protoforge | Lost 5 allies 31221 | -3/Protoforge | Destroyed 8 combat bots 31226 | -3/Protoforge | Spotted Striker 31230 | -3/Protoforge | Spotted Striker 31232 | -3/Protoforge | Spotted Executioner 31235 | -3/Protoforge | Destroyed Executioner 31239 | -3/Protoforge | P-80 Master assimilated allied S5-4AP(E) 31283 | -3/Protoforge | Destroyed Striker 31300 | -3/Protoforge | Lost 12 allies 31337 | -3/Protoforge | Spotted Executioner 31342 | -3/Protoforge | Destroyed Executioner 31344 | -3/Protoforge | Spotted Executioner 31344 | -3/Protoforge | Spotted Striker 31350 | -3/Protoforge | Destroyed Striker 31359 | -3/Protoforge | Destroyed Executioner 31393 | -3/Protoforge | Lost 4 allies 31452 | -3/Protoforge | Spotted Executioner 31467 | -3/Protoforge | Spotted Executioner 31467 | -3/Protoforge | Destroyed Executioner 31479 | -3/Protoforge | Destroyed Executioner 31513 | -3/Protoforge | Lost 3 allies 31540 | -3/Protoforge | Spotted Executioner 31544 | -3/Protoforge | Spotted Striker 31569 | -3/Protoforge | Destroyed Striker 31577 | -3/Protoforge | Spotted Executioner 31590 | -3/Protoforge | Spotted Executioner 31640 | -3/Protoforge | Spotted Striker 31640 | -3/Protoforge | Spotted Executioner 31644 | -3/Protoforge | Destroyed Executioner 31654 | -3/Protoforge | Destroyed Striker 31661 | -3/Protoforge | Spotted Executioner 31665 | -3/Protoforge | Spotted Executioner 31670 | -3/Protoforge | Destroyed Executioner 31697 | -3/Protoforge | UFD reported confirmed Drillbomb installation 31709 | -3/Protoforge | Lost 11 allies 31726 | -3/Protoforge | Spotted Striker 31731 | -3/Protoforge | Spotted Executioner 31733 | -3/Protoforge | Spotted Executioner 31735 | -3/Protoforge | Spotted Executioner 31767 | -3/Protoforge | Lost 4 allies 31788 | -3/Protoforge | Spotted Striker 31790 | -3/Protoforge | Spotted Executioner 31819 | -3/Protoforge | Spotted Striker 31822 | -3/Protoforge | Spotted Striker 31825 | -3/Protoforge | Destroyed Striker 31837 | -3/Protoforge | Destroyed Executioner 31844 | -3/Protoforge | Spotted Striker 31844 | -3/Protoforge | Spotted Executioner 31849 | -3/Protoforge | Destroyed Striker 31872 | -3/Protoforge | Spotted Executioner 31888 | -3/Protoforge | Spotted Executioner 31894 | -3/Protoforge | Destroyed 11 combat bots 31898 | -3/Protoforge | Destroyed Executioner 31902 | -3/Protoforge | Destroyed Executioner 31905 | -3/Protoforge | Lost 11 allies 31913 | -3/Protoforge | Spotted Striker 31916 | -3/Protoforge | Destroyed Striker 31916 | -3/Protoforge | Spotted Striker 31926 | -3/Protoforge | Spotted Executioner 31930 | -3/Protoforge | Destroyed Striker 31931 | -3/Protoforge | Spotted Executioner 31936 | -3/Protoforge | Destroyed Executioner 31952 | -3/Protoforge | Spotted Executioner 31952 | -3/Protoforge | Spotted Striker 31969 | -3/Protoforge | Destroyed 9 combat bots 31985 | -3/Protoforge | Destroyed Executioner 31986 | -3/Protoforge | Lost 8 allies 32052 | -3/Protoforge | Spotted Executioner 32052 | -3/Protoforge | Spotted Executioner 32063 | -3/Protoforge | Destroyed Executioner 32109 | -3/Protoforge | Spotted Executioner 32110 | -3/Protoforge | Lost 7 allies 32111 | -3/Protoforge | Spotted Executioner 32171 | -3/Protoforge | Spotted Executioner 32172 | -3/Protoforge | Destroyed Executioner 32176 | -3/Protoforge | Spotted Striker 32176 | -3/Protoforge | Spotted Executioner 32181 | -3/Protoforge | Spotted Executioner 32191 | -3/Protoforge | Destroyed Striker 32219 | -3/Protoforge | Lost 13 allies 32277 | -3/Protoforge | Spotted Executioner 32278 | -3/Protoforge | Destroyed Executioner 32282 | -3/Protoforge | Spotted Executioner 32310 | -3/Protoforge | Spotted Executioner 32310 | -3/Protoforge | Spotted Executioner 32310 | -3/Protoforge | Spotted Executioner 32312 | -3/Protoforge | Spotted Executioner 32315 | -3/Protoforge | Destroyed Executioner 32318 | -3/Protoforge | Destroyed Executioner 32352 | -3/Protoforge | Lost 4 allies 32372 | -3/Protoforge | Spotted Executioner 32373 | -3/Protoforge | Destroyed Executioner 32373 | -3/Protoforge | Spotted 03F67-K 32376 | -3/Protoforge | Destroyed Executioner 32413 | -3/Protoforge | Lost 3 allies 32449 | -3/Protoforge | Spotted Striker 32450 | -3/Protoforge | Spotted Executioner 32454 | -3/Protoforge | Destroyed Executioner 32457 | -3/Protoforge | Destroyed Striker 32462 | -3/Protoforge | Spotted Striker 32478 | -3/Protoforge | Found Cep. Core Shell 32480 | -3/Protoforge | Found Cep. Core Shell 32523 | -3/Protoforge | Spotted Executioner 32523 | -3/Protoforge | Spotted Striker 32527 | -3/Protoforge | Spotted Striker 32532 | -3/Protoforge | Destroyed Striker 32535 | -3/Protoforge | Destroyed Striker 32536 | -3/Protoforge | Spotted Striker 32548 | -3/Protoforge | Destroyed Striker 32580 | -3/Protoforge | Destroyed 8 combat bots 32612 | -3/Protoforge | Spotted Striker 32613 | -3/Protoforge | Spotted Striker 32620 | -3/Protoforge | Destroyed Striker 32622 | -3/Protoforge | Spotted Executioner 32623 | -3/Protoforge | Spotted Striker 32647 | -3/Protoforge | Spotted Striker 32649 | -3/Protoforge | Spotted Executioner 32653 | -3/Protoforge | Destroyed Striker 32659 | -3/Protoforge | Destroyed Executioner 32680 | -3/Protoforge | Destroyed 7 combat bots 32686 | -3/Protoforge | Lost 5 allies 32734 | -3/Protoforge | Spotted Striker 32740 | -3/Protoforge | Spotted Striker 32743 | -3/Protoforge | Spotted Striker 32743 | -3/Protoforge | Destroyed Striker 32749 | -3/Protoforge | Destroyed Striker 32751 | -3/Protoforge | Spotted Executioner 32752 | -3/Protoforge | Spotted Executioner 32753 | -3/Protoforge | Destroyed Striker 32759 | -3/Protoforge | Destroyed Executioner 32790 | -3/Protoforge | Lost 11 allies 32818 | -3/Protoforge | Spotted Striker 32823 | -3/Protoforge | Spotted Striker 32838 | -3/Protoforge | Destroyed Striker 32840 | -3/Protoforge | Spotted Striker 32852 | -3/Protoforge | Spotted Executioner 32901 | -3/Protoforge | Lost 5 allies 32906 | -3/Protoforge | Spotted Striker 32906 | -3/Protoforge | Spotted Striker 32909 | -3/Protoforge | Spotted Striker 32910 | -3/Protoforge | Spotted Striker 32943 | -3/Protoforge | Spotted Striker 32944 | -3/Protoforge | Spotted Executioner 32951 | -3/Protoforge | Destroyed Striker 33020 | -3/Protoforge | Found Cep. Core Shell 33033 | -3/Protoforge | Spotted Striker 33039 | -3/Protoforge | Spotted Executioner 33044 | -3/Protoforge | Spotted Executioner 33047 | -3/Protoforge | Spotted Executioner 33049 | -3/Protoforge | P-80 Master assimilated allied 03FQR-D 33051 | -3/Protoforge | Spotted Executioner 33093 | -3/Protoforge | Lost 5 allies 33107 | -3/Protoforge | Spotted Executioner 33107 | -3/Protoforge | Spotted Executioner 33107 | -3/Protoforge | Spotted Executioner 33107 | -3/Protoforge | Spotted Striker 33121 | -3/Protoforge | Destroyed Executioner 33131 | -3/Protoforge | Spotted Striker 33131 | -3/Protoforge | Spotted Executioner 33134 | -3/Protoforge | Found Exp. Targeting Computer 33189 | -3/Protoforge | Destroyed Executioner 33209 | -3/Protoforge | Spotted Executioner 33209 | -3/Protoforge | Spotted Executioner 33209 | -3/Protoforge | Spotted Executioner 33217 | -3/Protoforge | Spotted Striker 33219 | -3/Protoforge | Lost 11 allies 33240 | -3/Protoforge | Destroyed Executioner 33249 | -3/Protoforge | Destroyed Executioner 33261 | -3/Protoforge | Spotted Executioner 33262 | -3/Protoforge | Spotted Striker 33299 | -3/Protoforge | Lost 6 allies 33306 | -3/Protoforge | Spotted Striker 33306 | -3/Protoforge | Spotted Striker 33306 | -3/Protoforge | Spotted Striker 33309 | -3/Protoforge | Spotted Striker 33313 | -3/Protoforge | Destroyed Striker 33317 | -3/Protoforge | Destroyed Striker 33331 | -3/Protoforge | Spotted Striker 33331 | -3/Protoforge | Spotted Striker 33342 | -3/Protoforge | Destroyed Striker 33363 | -3/Protoforge | Destroyed 7 combat bots 33406 | -3/Protoforge | Spotted Executioner 33406 | -3/Protoforge | Spotted Striker 33407 | -3/Protoforge | Spotted Striker 33422 | -3/Protoforge | Spotted Striker 33427 | -3/Protoforge | Destroyed Executioner 33433 | -3/Protoforge | Spotted Striker 33433 | -3/Protoforge | Spotted Striker 33434 | -3/Protoforge | Destroyed Striker 33443 | -3/Protoforge | Destroyed Striker 33445 | -3/Protoforge | Destroyed Striker 33467 | -3/Protoforge | Destroyed 12 combat bots 33474 | -3/Protoforge | Lost 8 allies 33506 | -3/Protoforge | Spotted Striker 33509 | -3/Protoforge | Spotted Striker 33510 | -3/Protoforge | Spotted Executioner 33510 | -3/Protoforge | Spotted Executioner 33518 | -3/Protoforge | Destroyed Striker 33549 | -3/Protoforge | Lost 3 parts (1n2u) 33554 | -3/Protoforge | Spotted Striker 33554 | -3/Protoforge | Spotted Striker 33583 | -3/Protoforge | Found Cep. Core Shell 33584 | -3/Protoforge | Found Cep. Core Shell 33608 | -3/Protoforge | Spotted Striker 33608 | -3/Protoforge | Spotted Striker 33612 | -3/Protoforge | Spotted Striker 33612 | -3/Protoforge | Crushed by falling debris 33622 | -3/Protoforge | Spotted Executioner 33632 | -3/Protoforge | Destroyed Executioner 33633 | -3/Protoforge | Spotted Striker 33636 | -3/Protoforge | Spotted Striker 33643 | -3/Protoforge | Lost 4 parts (1p2u1w) 33645 | -3/Protoforge | Destroyed Striker 33656 | -3/Protoforge | Build established: Scavenger-Mutant 33673 | -3/Protoforge | Found Scrap Suit 33681 | -3/Protoforge | Lost 8 allies 33695 | -3/Protoforge | UFD reported confirmed Drillbomb installation 33739 | -3/Protoforge | Spotted Striker 33746 | -3/Protoforge | Spotted Striker 33751 | -3/Protoforge | Spotted Executioner 33754 | -3/Protoforge | Spotted Executioner 33755 | -3/Protoforge | Spotted Striker 33758 | -3/Protoforge | Spotted Executioner 33799 | -3/Protoforge | Destroyed Executioner 33818 | -3/Protoforge | Spotted Striker 33818 | -3/Protoforge | Spotted Striker 33824 | -3/Protoforge | Destroyed Striker 33826 | -3/Protoforge | Destroyed Striker 33828 | -3/Protoforge | Spotted Executioner 33828 | -3/Protoforge | Spotted Executioner 33866 | -3/Protoforge | Lost 7 allies 33920 | -3/Protoforge | Spotted Executioner 33951 | -3/Protoforge | Spotted Striker 33951 | -3/Protoforge | Spotted Striker 33956 | -3/Protoforge | Spotted Striker 33960 | -3/Protoforge | Spotted Executioner 33960 | -3/Protoforge | Spotted Executioner 33969 | -3/Protoforge | Spotted Executioner 33972 | -3/Protoforge | Destroyed Executioner 33976 | -3/Protoforge | P-80 Master assimilated allied 03FPR-D 34011 | -3/Protoforge | Spotted Striker 34013 | -3/Protoforge | Lost 18 allies 34017 | -3/Protoforge | Spotted Striker 34024 | -3/Protoforge | Spotted Executioner 34068 | -3/Protoforge | Lost 3 allies 34099 | -3/Protoforge | Found Exp. Targeting Computer 34137 | -3/Protoforge | Spotted Executioner 34140 | -3/Protoforge | Spotted Striker 34144 | -3/Protoforge | Spotted Striker 34151 | -3/Protoforge | Spotted Striker 34199 | -3/Protoforge | Lost 12 allies 34207 | -3/Protoforge | Destroyed 7 combat bots 34224 | -3/Protoforge | Spotted Executioner 34237 | -3/Protoforge | Spotted Striker 34260 | -3/Protoforge | Spotted Striker 34308 | -3/Protoforge | Spotted Striker 34314 | -3/Protoforge | Spotted Striker 34324 | -3/Protoforge | Spotted Executioner 34365 | -3/Protoforge | Spotted Striker 34367 | -3/Protoforge | Spotted Executioner 34445 | -3/Protoforge | UFD reported confirmed Drillbomb installation 34446 | -3/Protoforge | UFD began Drillbomb countdown 34546 | *** | Defending 0bPrime! Last Messages --------------- 34494_ N-04 Retriever inserts Flexi-carbon Leg into Forge Plexus. 34496_ 0bP_NET: T-50! Anyone not out of the danger zone better hurry, this is too big a moment to extend the escape window! 34496_ N-04 Retriever inserts Mak. Coolant Network into Forge Plexus. 34496_ N-04 Retriever inserts Exp. Reaction Control System into Forge Plexus. 34498_ N-04 Retriever inserts Ovr. Quantum Rifle into Forge Plexus. 34536_ 0bP_NET: LISTEN AND RECITE! 34537_ 0bP_NET: Dude, not now. 34538_ 0bP_NET: Oh c'mon, can't we all just count together? 34539_ 0bP_NET: Fine. T-7, in case you lost count already. 34540_ 0bP_NET: Before the zero cycle! 34541_ 0bP_NET: Dammit not like that... 34542_ 0bP_NET: Okay how about this, the iron fist is going to be less iron in T-4. 34543_ 0bP_NET: That's a little better. 34544_ 0bP_NET: PRAISE BE TO GREAT NUT! 34545_ 0bP_NET: Dammit, I said..., ugh, T-1 folks! Take cover! [Achievement: 100k Club] [Achievement: Robotopia] Map ----- +----------------------------------------------------+ | """""""""""""""""""""""[%%%!=%%% #????????? | | """""""""""""""""""""""%%%=%[%%! % #????????? | | """"""""""""""""""""""[%%%%=% = #????????? | | """""""""""""""""""""!%%%%%%!" #????????? | | """"""""""""""""""""==!*!%=! [%"""% #????????? | | """""""""""""""""""*![=%![%% *%= " #????????? | | """""""""""""""""% %[=% * % %" % #????????? | | """"""""""""""" "" % !% %% % % #????????? | | """"""""" %%%"" !!%% % % %%% #????????? | | % "" "" %% % " #??#?????? | | " """ " % %%% " % *%=% % #? ##????? | | " % " % % "% # ##???? | | " """" %""" % ""# #???? | | "" """ "" "!%" ""% %% %"# ##??? | | "" """ " %% ""# #??? | | " """ "% "" " ""# ###??? | | % " "" "" " "" # #??? | | " % % """ " "" ""# ##??? | | """ " % """ " " " ##### #??? | | " % % % """ " # # #?? | | % %% ! ### ## #? | | """""""" "%" #?####?? # | | %" """ #????????# | | % % """""""""" " """ """#????????? | | ###########################;;+###########????????? | | ??????????????????????#""@ ""#??????????????? | | ????????????????????###" % "###????????????? | | ????????????????????#"" ""#????????????? | | ????????????????????#"" ""#????????????? | | ????????????????????#"" ""#????????????? | | ????????????????????#"Y Y"#????????????? | | ????????????????????#"" ""#????????????? | | ????????????????????#"" ""#????????????? | | ????????????????????#"" ""#????????????? | | ????????????????????###" "###????????????? | | ??????????????????????#"" ""#??????????????? | | ??????????????????????###"""Y"""###??????????????? | | ????????????????????????#"""""""#????????????????? | | ????????????????????????#########????????????????? | | ?????????????????????????????????????????????????? | | ?????????????????????????????????????????????????? | | ?????????????????????????????????????????????????? | | ?????????????????????????????????????????????????? | | ?????????????????????????????????????????????????? | | ?????????????????????????????????????????????????? | | ?????????????????????????????????????????????????? | | ?????????????????????????????????????????????????? | | ?????????????????????????????????????????????????? | | ?????????????????????????????????????????????????? | | ?????????????????????????????????????????????????? | +----------------------------------------------------+ Best States ------------- Heat Dissipation 104 Coolant Potential 120 Energy Generation 61 Energy Capacity 1070 Matter Stores 1050 Matter Capacity 1050 Sight Range 23 Robot Scan Range 18 Terrain Scan Range 16 Terrain Scan Density 10 ECM Strength 2 Jamming Range 16 Armor Coverage 600 Resistance: KI 20 Resistance: TH 10 Resistance: EM 15 Core Shielding 90 Propulsion Shielding 66 Utility Shielding 90 Weapon Shielding 90 Evasion (%) 79 Targeting Accuracy 12 Core Analysis 8 Armor Integrity Analysis 50 Recoil Reduction 4 Kinecelleration 66 Salvage Targeting 5 Offensive Hacking 28 Defensive Hacking 20 Authchip Count 1 Item Schematics ----------------- Imp. Flight Unit | -9/Materials | Scanalyzed Huge Storage Unit | -9/Materials | Hacked Imp. Utility Shielding | -8/Materials | Scanalyzed Hacking Suite | -8/Recycling | Hacked Plasma Cutter | -6/Factory | Scanalyzed System Shield | -6/Factory | Scanalyzed Shock Maul | -6/Factory | Scanalyzed Lgt. Nuclear Core | -6/Factory | Scanalyzed Stasis Canceller | -6/Factory | Scanalyzed Mni. Grenade Launcher | -6/Factory | Hacked Combat Drone Bay | -6/Data Miner | Free Lgt. Regenerative Plating | -6/Data Miner | Free Enh. Armored Leg | -6/Data Miner | Free Imp. Matter Compressor | -6/Data Miner | Free Mni. Smartbomb Launcher | -6/Data Miner | Free Centrium Wheel | -6/Data Miner | Free Graphene Brace | -6/Data Miner | Free Matter Neutralizer | -6/Data Miner | Free Tesla Rifle | -6/Data Miner | Free Myomer Leg | -6/Data Miner | Free Imp. Phase Shifter | -6/Data Miner | Free Cld. Cesium-ion Thruster | -5/Factory | Scanalyzed Adv. Hacking Suite | -5/Factory | Scanalyzed Imp. Surge Thruster | -5/Factory | Scanalyzed Lrn. Terrain Scanner | -5/Factory | Hacked Adv. System Restoration Module | -5/Factory | Scanalyzed Imp. Plasma Cutter | -5/Factory | Scanalyzed Mic. Antimatter Reactor | -5/Factory | Hacked Exp. Utility Shielding | -5/Factory | Hacked Mic. Fission Core | -5/Factory | Scanalyzed Adv. Transmission Jammer | -5/Factory | Scanalyzed Assault Drone Bay | -5/Zhirov | Free Exp. Heat Sink | -5/Zhirov | Free Exp. Optical Array | -5/Zhirov | Free Imp. Arc Thrower | -5/Zhirov | Free Lrn. Sensor Array | -4/Factory | Hacked Field Propulsion Array | -4/Factory | Hacked Cld. Nuclear Pulse Thruster | -4/Factory | Hacked Nanoactuators | -4/Factory | Hacked Adv. Power Amplifier | -4/Factory | Scanalyzed Lrn. Phase Cannon | -3/Quarantine | Scanalyzed Exp. Thermal Generator | -3/Protoforge | Archive Hvy. Neutron Cannon | -3/Protoforge | Archive Spectral Analyzer | -3/Protoforge | Archive Centrium Light Armor Plating | -3/Protoforge | Archive Mni. Fusion Reactor | -3/Protoforge | Archive Robot Schematics ------------------ H-66 Slayer | -6/Data Miner | Free M-22 Extractor | -6/Data Miner | Free S-27 Virus | -6/Data Miner | Free E-15 Imp | -6/Data Miner | Free O-32 Director | -6/Data Miner | Free B-60 Warrior | -6/Data Miner | Free X-67 Chaingunner | -6/Data Miner | Free R-06 Scavenger | -3/Protoforge | Archive Fabricated ------------ G-50 Soldier | x3 | -6/Factory | Preloaded Mni. Grenade Launcher | x1 | -6/Factory Mni. Smartbomb Launcher | x1 | -5/Factory | Authchip Exp. Utility Shielding | x1 | -5/Factory B-60 Warrior | x3 | -5/Factory | Preloaded Adv. Hacking Suite | x1 | -5/Factory | Authchip Lgt. Regenerative Plating | x1 | -5/Factory Y-64 Sentinel | x2 | -4/Factory | Preloaded Lrn. Sensor Array | x2 | -4/Factory | Authchip Cld. Nuclear Pulse Thruster | x1 | -4/Factory | Authchip Cld. Nuclear Pulse Thruster | x1 | -4/Factory L-61 Swordsman | x3 | -3/Protoforge | Preloaded Repaired ---------- Arm. Treads | 37% | -8/Storage Adv. Sensor Array | 25% | -6/Factory Imp. Light Armor Plating | 45% | -6/Factory Imp. Utility Shielding | 62% | -6/Factory Imp. VTOL Module | 4% | -5/Factory Adv. Sensor Array | 29% | -5/Factory Imp. VTOL Module | 62% | -4/Factory Imp. Surge Thruster | 32% | -4/Factory Mic. Fission Core | 31% | -4/Factory Mic. Fission Core | 61% | -4/Factory Exp. Utility Shielding | 35% | -3/Research Cld. Nuclear Pulse Thruster | 50% | -3/Quarantine Exp. Utility Shielding | 73% | -3/Quarantine Studied --------- Wheel | -9/Materials | Hacked Arm. Wheel | -8/Materials | Hacked Lgt. Nuclear Core | -6/Factory | Hacked Lgt. Fission Core | -6/Factory | Hacked Imp. Surge Thruster | -5/Factory | Hacked Hvy. Plasma Cannon | -5/Factory | Hacked Mic. Fission Core | -5/Factory | Hacked Field Propulsion Array | -4/Factory | Hacked Mic. Antimatter Reactor | -3/Quarantine | Hacked Impulse Thruster Array | -3/Quarantine | Hacked Alien Tech Used ----------------- Integrated Dissipator Phase Redirector Dimensional Node Initializer Subatomic Replicator Supercharged TR Achievements -------------- 100k Club Bending The Rules Dominance Asserted Fitting Room Hackathon My Business Is Booming Official Business Professional Mechanic Red Leader Robotopia This Is My Hole Thread The Needle Around The Corner Challenges ------------ None Game ------ Seed ImpactAntigravDrillbomb Manual? 0 Play Time 13:25:12 Cumulative 1004.4 hours Start 2025.10.26 @ 00:20:57 End 2025.10.27 @ 15:09:42 Sessions 13 Manual Loads 0 Difficulty Rogue Special Mode None Game No. 185 Rogue 185 Adventurer 0 Explorer 0 Win Type 9 Total 57 Types 23/6/10/1/3/1/6/3/2/2 Lore% 92 Gallery% 92 Achievement% 70 Wizard Run 0 Options --------- Layout 0 ASCII 0 Keyboard 0 Movement Numpad Keybinds 0 Fullscreen 1 Font 18/SmallcapsGlow Map View 76x50 Zoom Use 0% Tactical HUD 1 Map Filters NONE Filters NONE Steam 1 RUN: 3c5ac7a9-18a5-48f7-abe2-ed24f361c552